Cogmind - Beta 16 @@@ ROGUE MODE // 2025.11.27 @ 17:52:53 Player: Dadrick Result: Destroyed by G-73 Enforcer with Phase Gun Performance ------------- Evolutions (9) 4500 Regions Visited (31) 6200 Robots Destroyed (497) 2485 Value Destroyed (25651) 25651 Prototype IDs (153) 3060 Alien Tech Used (6) 1200 Bonus (48977) 48977 TOTAL SCORE: 92073 Bonus ------- Triggered High Security 500 High Alert Combat Kills 15783 Follower Combat Kills 2025 Destroyed Unchained 1000 Network Hubs Disabled 200 Registered with UFD 300 Met Optimus in HQ 500 Met Data Miner 300 Built Enhanced Grunts 300 A7 Reached Mainframe 300 Met R17 at Cetus 500 Found Hidden Lab 3000 Met R17 at Research 2000 Destroyed Superfortress 15000 Met Optimus at Protoforge 1000 Executed Drillbomb Mission 10000 Friendly Fire -3731 Cogmind --------- Core Integrity 0/1600 Matter 289/300 Energy 100/100 System Corruption 12% Temperature Cool (10) Movement Flying (60) Location -1/Command Parts ------- > --- POWER (3) -------- (None) > --- PROPULSION (8) --- Biometal Medium Treads Nuclear Pulse Array > --- UTILITY (12) ----- Advanced Sensor Array (fused) Advanced Signal Interpreter > --- WEAPON (3) ------- Concept Deflector Sword > --- INVENTORY (5) ---- Concept Countertargeting System Experimental Reaction Control System Concept Antimissile System Concept Impact Drone Bay (6/6) Peak State ------------ > --- POWER ------------ Reinforced Antimatter Reactor Hybrid Graviton Reactor Concept Zero-point Core > --- PROPULSION ------- Experimental Antigrav System Gravjet Array Gravjet Array Concept Gyrokinetic System Concept Gyrokinetic System Concept Gyrokinetic System > --- UTILITY ---------- Concept Phasing Heat Sink Concept Antigrav Storage Unit Experimental Optical Array Experimental Signal Interpreter Concept Hypertargeting System Experimental Core Analyzer Mini Quantum Capacitor Advanced Transmission Jammer Experimental Reaction Control System Advanced Phase Shifter Concept Core Shell Concept RG22 Armor > --- WEAPON ----------- Concept Plasma Driver Concept Arcsight Missile Launcher Concept Deflector Sword > --- INVENTORY -------- Hybrid Graviton Reactor Improved Linear Gravjet Gravjet Array Concept Phasing Heat Sink Concept Chromion Battery Concept NT7 Matterbank Advanced Sensor Array Advanced Signal Interpreter Experimental Targeting Computer Concept Hypertargeting System Concept Countertargeting System Experimental Reaction Control System Concept Core Shell Experimental Powered Armor Concept RG22 Armor Graphene Brace AEGIS Remote Shield Concept Antimissile System Concept Impact Drone Bay Concept Disintegration Ray Concept Disintegration Ray Concept Plasma Driver Concept Plasma Driver Concept Rapid Grenade Launcher [Rating: 303] Favorites ----------- Power Light Fission Core Engine Heavy Ion Engine Power Core Light Fission Core Reactor Hybrid Graviton Reactor Propulsion Cooled Cesium-ion Thruster Treads Enhanced Armored Heavy Treads Leg Aluminum Leg Hover Unit Concept Gyrokinetic System Flight Unit Cooled Cesium-ion Thruster Utility Enhanced Optical Array Device Improved Sensor Array Storage Medium Storage Unit Processor Enhanced Optical Array Hackware Advanced System Shield Protection Concept RG22 Armor Weapon Heavy Assault Rifle Energy Gun Concept Disintegration Ray Energy Cannon Concept Plasma Driver Ballistic Gun Heavy Assault Rifle Ballistic Cannon Gauss Cannon Launcher Concept Arcsight Missile Launcher Special Weapon Improved Plasma Cutter Impact Weapon Hammer Slashing Weapon Power Sword Piercing Weapon Experimental Jetlance Build | -11 -10 -9 -9 -9 -9 -6 -6 -6 -6 -6 -6 -5 -5 -5 -5 -5 -5 -5 -5 -4 -4 -4 -4 -4 -3 -3 -2 -2 -2 -1 -1 ------- Run | Yrd Mat Mat Sto Rec Scr Fac Was Fac Low Low Dat Pro Fac Was Fac Ext Cet Arc Hub Fac Was Fac Arm Lab Res Qua Res Tes Frg Acc Com Slots Evolved 18 | . . 2 . . . 6 . . . . . . 2 . . . . . . 2 . . . . 2 . 2 . . 2 . Power 1 | . . . . . . . . . . . . . . . . . . . . 1 . . . . . . . . . . . Propulsion 6 | . . 1 . . . 3 . . . . . . . . . . . . . 1 . . . . . . 1 . . . . Utility 10 | . . . . . . 3 . . . . . . 2 . . . . . . . . . . . 2 . 1 . . 2 . Weapon 1 | . . 1 . . . . . . . . . . . . . . . . . . . . . . . . . . . . . Parts Attached 241 | 7 8 25 18 1 . 23 1 7 . . . . 11 . 10 9 3 1 1 7 1 2 . 6 8 4 4 5 62 15 2 Power 29 | 1 1 4 2 . . 2 . . . . . . 1 . . 1 . 1 1 . 1 . . . 1 1 1 . 9 2 . Engine 11 | 1 1 4 2 . . 1 . . . . . . . . . . . 1 . . . . . . . . 1 . . . . Core 6 | . . . . . . 1 . . . . . . 1 . . 1 . . 1 . . . . . . 1 . . 1 . . Reactor 12 | . . . . . . . . . . . . . . . . . . . . . 1 . . . 1 . . . 8 2 . Propulsion 63 | 2 2 6 8 . . 7 . 4 . . . . 1 . . 2 . . . 2 . 1 . 1 3 1 1 1 15 4 2 Treads 3 | . . . . . . . . . . . . . . . . . . . . . . . . . . . . . . 2 1 Leg 18 | 2 2 6 8 . . . . . . . . . . . . . . . . . . . . . . . . . . . . Wheel . | . . . . . . . . . . . . . . . . . . . . . . . . . . . . . . . . Hover 11 | . . . . . . . . . . . . . . . . . . . . . . . . . . . . . 10 1 . Flight 31 | . . . . . . 7 . 4 . . . . 1 . . 2 . . . 2 . 1 . 1 3 1 1 1 5 1 1 Utility 88 | 2 1 6 1 1 . 8 1 2 . . . . 5 . 9 1 2 . . 2 . . . 2 3 2 2 4 26 8 . Device 39 | 1 . 1 . . . 3 . 1 . . . . 2 . 5 1 . . . . . . . . 2 1 1 3 14 4 . Storage 7 | 1 1 1 . . . 1 . . . . . . . . 1 . . . . . . . . . . . . 1 1 . . Processor 15 | . . . . . . 2 . . . . . . 1 . . . . . . 1 . . . . 1 1 . . 7 2 . Hackware 6 | . . . . . . . . . . . . . 1 . 1 . 1 . . 1 . . . 1 . . 1 . . . . Protection 21 | . . 4 1 1 . 2 1 1 . . . . 1 . 2 . 1 . . . . . . 1 . . . . 4 2 . Artifact . | . . . . . . . . . . . . . . . . . . . . . . . . . . . . . . . . Weapon 61 | 2 4 9 7 . . 6 . 1 . . . . 4 . 1 5 1 . . 3 . 1 . 3 1 . . . 12 1 . Energy Gun 3 | . . . . . . . . . . . . . . . . . . . . . . . . 1 . . . . 1 1 . Energy Cannon 6 | . . . . . . . . . . . . . . . . 1 . . . . . . . 1 . . . . 4 . . Ballistic Gun 25 | 2 3 9 6 . . 2 . . . . . . . . . . 1 . . 1 . . . . . . . . 1 . . Ballistic Cannon 5 | . . . . . . 1 . . . . . . 1 . . 2 . . . . . 1 . . . . . . . . . Launcher 7 | . . . . . . 1 . . . . . . . . 1 1 . . . . . . . . . . . . 4 . . Special Weapon 6 | . 1 . . . . . . 1 . . . . 2 . . . . . . . . . . 1 1 . . . . . . Impact Weapon 1 | . . . 1 . . . . . . . . . . . . . . . . . . . . . . . . . . . . Slashing Weapon 7 | . . . . . . 2 . . . . . . 1 . . 1 . . . 2 . . . . . . . . 1 . . Piercing Weapon 1 | . . . . . . . . . . . . . . . . . . . . . . . . . . . . . 1 . . Special Melee Weapon . | . . . . . . . . . . . . . . . . . . . . . . . . . . . . . . . . Unidentified Prototypes 26 | . . . 1 . . 1 . 1 . . . . 1 . 1 . 1 . . 1 . . . 7 1 3 . 2 5 . 1 Corrupted Parts 1 | . . . . . . . . . . . . . . . . . . . . . . . . . . . . . 1 . . System Corruption 10 | . . . . . . . . . . . . . . . . . . . . . . . . . . . . . 10 . . Parts Lost 62 | . 1 2 2 1 . 2 . . . . . . . . 2 7 1 . . . . . 6 . 1 . . . 16 21 . Power 10 | . . . 1 . . 1 . . . . . . . . . 1 . . . . . . . . . . . . 3 4 . Propulsion 15 | . . 1 . . . . . . . . . . . . . 2 1 . . . . . 3 . 1 . . . 1 6 . Utility 22 | . . 1 . 1 . 1 . . . . . . . . 1 1 . . . . . . 2 . . . . . 8 7 . Weapon 15 | . 1 . 1 . . . . . . . . . . . 1 3 . . . . . . 1 . . . . . 4 4 . Highest Loss Streak 17 | . 1 1 1 1 . 1 . . . . . . . . 1 4 1 . . . . . 5 . 1 . . . 3 17 . To Critical Strikes . | . . . . . . . . . . . . . . . . . . . . . . . . . . . . . . . . Average Backups 13 | 2 12 17 19 20 20 5 5 5 5 5 5 5 4 5 8 9 9 9 8 8 9 9 8 6 8 7 8 9 19 20 4 Power 1 | . 1 1 1 1 1 . 1 1 1 1 1 1 1 1 1 . 1 1 . . 1 1 1 1 1 1 1 1 1 1 . Propulsion 2 | . 3 3 5 7 7 . . . 2 2 2 2 1 1 1 . . . . . 1 1 . . . 1 1 . 1 1 . Utility 5 | . 4 6 5 5 6 1 1 1 1 1 1 1 1 1 3 4 4 4 4 4 4 4 4 3 2 1 1 2 12 13 4 Weapon 3 | . 2 6 5 5 5 1 2 1 1 1 1 1 1 1 1 1 3 3 3 2 2 2 2 . 2 2 2 3 4 4 . Tool/Special . | . . . . . . . . . . . . . . . . . . . . . . . . . . . . . . . . Unused Backups 48 | . . 9 2 . . 2 . . . . . . 2 . 2 1 1 . . . . 1 . . 1 1 1 . 13 8 4 Power 3 | . . . 1 . . . . . . . . . 1 . . . . . . . . . . . . . . . 1 . . Propulsion 2 | . . . . . . . . . . . . . . . . . . . . . . . . . . . . . 1 1 . Utility 32 | . . 4 1 . . 1 . . . . . . . . 2 1 1 . . . . 1 . . 1 . . . 9 7 4 Weapon 10 | . . 5 . . . 1 . . . . . . 1 . . . . . . . . . . . . . 1 . 2 . . Tool/Special 1 | . . . . . . . . . . . . . . . . . . . . . . . . . . 1 . . . . . Average Slot Usage (%) 90 | . 99 99 99 99 100 95 93 92 100 100 93 100 91 94 92 92 88 82 80 86 89 85 81 66 76 80 80 81 87 79 15 Engine 4 | . 14 11 10 11 11 2 . . . . . . . . . . . 4 4 . . . . . . . 2 4 . . . Core 2 | . . . . . . 3 6 6 6 6 6 6 5 5 5 5 5 . . 5 1 . . . . . . . 2 2 . Reactor 2 | . . . . . . . . . . . . . . . . . . . . . 4 5 5 5 4 4 4 4 7 5 . Leg 10 | . 27 32 32 33 33 . . . . . . . . . . . . . . . . . . . . . . . . . . Hover 4 | . . . . . . . . . . . . . . . . . . . . . . . . . . . . . 18 17 . Flight 14 | . . . . . . 39 40 39 40 40 40 40 29 29 29 31 29 29 28 30 31 27 24 20 19 22 20 18 6 . 3 Device 9 | . 14 3 . . . 12 13 13 13 13 13 13 11 11 8 9 5 5 5 8 5 8 8 5 10 13 15 15 16 21 3 Storage 5 | . 14 11 11 11 11 . . . . . . . . . 4 5 5 5 5 5 5 5 5 5 4 4 4 4 4 2 . Processor 7 | . . . . . . 12 13 13 13 13 13 13 14 17 14 11 11 11 11 10 10 10 10 10 9 8 8 8 12 9 3 Hackware 3 | . . . . . . . . . . . . . 4 5 7 11 11 11 11 10 10 10 9 6 9 9 7 8 1 . . Protection 5 | . . 7 10 10 11 6 6 6 6 6 6 6 5 5 2 1 5 5 4 1 5 1 1 1 4 4 4 4 4 4 . Ballistic Gun 10 | . 25 32 28 33 33 6 . . . . . . . . . . 4 . . 3 . . . . . . . . . . . Ballistic Cannon 1 | . . . . . . 2 6 6 6 6 . 6 5 5 4 3 . . . 1 5 5 4 . . . . . . . . Special Weapon 1 | . 2 . . . . . . . 6 6 6 6 4 5 3 1 . . . . . . . 1 4 4 8 8 . . . Slashing Weapon 3 | . . . . . . 4 6 6 6 6 6 6 5 5 5 4 5 5 5 9 10 10 10 10 9 8 4 4 3 2 3 Peak Build Rating 303 | 7 8 17 22 22 21 53 53 65 62 62 62 62 89 89 95 95 81 78 77 104 111 111 111 115 141 152 162 174 290 303 47 Average Rating 99 | 5 7 14 18 21 21 47 53 53 62 62 58 62 81 89 88 84 75 72 71 87 105 106 104 91 121 137 157 166 248 256 39 On Entrance 78 | . 7 8 16 21 21 21 53 53 62 62 62 62 62 89 89 95 81 78 72 67 103 106 106 80 114 135 145 162 171 282 39 Avg Prop Armor Cover (%) 1 | . . . . . . 1 . 1 1 1 1 1 1 . . . . . . . . . . . . . . . 11 . 22 Naked Turns 19 | . . . . . . . . . . . . . . . . . . . . . . . . . . . . . . 19 . Heaviest Build 146 | 12 27 63 62 62 60 30 30 30 28 28 28 28 31 31 39 37 34 30 27 45 45 43 43 41 45 47 59 59 124 146 3 Greatest Support 160 | 20 20 30 39 39 39 30 30 34 28 28 28 46 48 39 51 46 37 31 37 46 46 57 57 41 51 59 70 71 128 160 15 Greatest Overweight (x) 2 | . 1 2 2 1 1 . . . . . . . . . . . . . . 1 . . . . . . . . 1 1 . Average Overweight (x) . | . . . 1 1 1 . . . . . . . . . . . . . . . . . . . . . . . . . . Largest Inventory Capacity 25 | 8 15 20 20 20 20 20 5 5 5 5 5 5 5 5 10 10 10 10 10 10 10 10 10 10 10 10 10 10 25 25 5 Average Capacity 14 | 7 14 18 20 20 20 5 5 5 5 5 5 5 5 5 9 10 10 10 10 10 10 10 10 10 10 10 10 10 20 22 5 Most Carried 25 | 3 15 20 20 20 20 20 5 5 5 5 5 5 5 5 10 10 10 10 10 10 10 10 10 10 10 10 10 10 25 25 4 Average Carried 14 | 2 12 17 19 20 20 5 5 4 5 5 5 5 4 5 9 9 9 9 9 9 10 9 9 6 9 9 9 9 20 21 4 Final Capacity 25 | 8 15 20 20 20 20 5 5 5 5 5 5 5 5 5 10 10 10 10 10 10 10 10 10 10 10 10 10 10 25 5 5 Final Carried 25 | 3 15 20 20 20 20 5 5 5 5 5 5 5 5 5 10 10 10 10 9 10 10 10 10 10 10 10 10 10 25 4 4 Class Distribution -------------------- 15% | Scavenger-Tank 15% | Hacker-Ninja 14% | Ninja 6% | Tank 6% | Sprinter 6% | Commander-Scout 6% | Hacker-Scout 5% | Mutant 5% | Scout 4% | Scavenger-Mutant 3% | Scavenger-Scout 3% | Scavenger-Sprinter Dominant Class ---------------- Scavenger-Mutant | -10/Materials Tank | -9/Materials Scavenger-Tank | -9/Storage Tank | -9/Recycling Scavenger-Tank | -9/Scraptown Ninja | -6/Factory Ninja | -6/Waste Ninja | -6/Factory Ninja | -6/Lower Caves Ninja | -6/Lower Caves Ninja | -6/Data Miner Ninja | -5/Proximity Caves Ninja | -5/Factory Ninja | -5/Waste Scout | -5/Factory Hacker-Ninja | -5/Extension Commander-Scout | -5/Cetus Commander-Scout | -5/Archives Commander-Scout | -5/Hub_04(d) Hacker-Ninja | -4/Factory Hacker-Scout | -4/Waste Hacker-Ninja | -4/Factory Hacker-Ninja | -4/Armory Scout | -4/Lab Hacker-Ninja | -3/Research Hacker-Ninja | -3/Quarantine Hacker-Ninja | -2/Research Hacker-Ninja | -2/Testing Sprinter | -2/Protoforge Scavenger-Assassin | -1/Access Mutant | -1/Command Resources | -11 -10 -9 -9 -9 -9 -6 -6 -6 -6 -6 -6 -5 -5 -5 -5 -5 -5 -5 -5 -4 -4 -4 -4 -4 -3 -3 -2 -2 -2 -1 -1 ----------- Run | Yrd Mat Mat Sto Rec Scr Fac Was Fac Low Low Dat Pro Fac Was Fac Ext Cet Arc Hub Fac Was Fac Arm Lab Res Qua Res Tes Frg Acc Com Matter Collected 11422 | 338 357 1169 959 65 . 385 154 148 119 6 . 28 164 . 192 1057 75 38 . 279 . 138 93 . 235 30 100 40 4549 536 168 Remotely . | . . . . . . . . . . . . . . . . . . . . . . . . . . . . . . . . Salvage Created 24330 | 183 487 1299 1371 170 . 533 406 503 . 74 . 65 721 . 412 597 73 101 . 317 . 158 15 . 460 199 156 141 11024 4697 168 Parts 1031 | 8 50 102 71 9 . 28 5 26 . . . . 21 . 21 26 6 6 . 14 . 3 3 . 11 6 8 5 415 183 4 Haulers Intercepted 25 | . . 3 4 . . 3 . 3 . . . . 4 . 2 . . . . . . . . . 3 . . . . 3 . Recyclers Shooed 5 | 2 . . 1 . . . . . . . . . 1 . . 1 . . . . . . . . . . . . . . . Parts Field Recycled . | . . . . . . . . . . . . . . . . . . . . . . . . . . . . . . . . Retrieved Matter . | . . . . . . . . . . . . . . . . . . . . . . . . . . . . . . . . Parts Self-Destructed . | . . . . . . . . . . . . . . . . . . . . . . . . . . . . . . . . Prevented . | . . . . . . . . . . . . . . . . . . . . . . . . . . . . . . . . Parts Restored 7 | . . . . . . . . . . . . . . . . . . . . . . . . . . . . . 7 . . Faulty 7 | . . . . . . . . . . . . . . . . . . . . . . . . . . . . . 7 . . Kills | -11 -10 -9 -9 -9 -9 -6 -6 -6 -6 -6 -6 -5 -5 -5 -5 -5 -5 -5 -5 -4 -4 -4 -4 -4 -3 -3 -2 -2 -2 -1 -1 ------- Run | Yrd Mat Mat Sto Rec Scr Fac Was Fac Low Low Dat Pro Fac Was Fac Ext Cet Arc Hub Fac Was Fac Arm Lab Res Qua Res Tes Frg Acc Com Combat Hostiles Destroyed 349 | . 14 35 19 . . 5 1 1 . . . . . . 8 9 . . . 4 . . 1 . 1 . . . 193 58 . Melee 8 | . . . . . . 2 . 1 . . . . . . . . . . . . . . 1 . 1 . . . 3 . . Guns 69 | . 14 35 19 . . . . . . . . . . . . . . . . . . . . . . . . . 1 . . Cannons 110 | . . . . . . . 1 . . . . . . . 1 2 . . . . . . . . . . . . 74 32 . AOE 129 | . . . . . . 3 . . . . . . . . 7 7 . . . 4 . . . . . . . . 89 19 . Classes Destroyed 31 | 2 5 2 1 . . 1 2 . . 1 . . . . . 1 . . . . . . 1 . . . . . 15 . . Worker 19 | . 1 . 2 . . 1 . 2 . . . . 1 . 1 1 . . . . . . . . . . . . . 9 1 Builder 12 | . 2 . . 1 . 1 . 2 . . . . 1 . . 2 . . . . . . . . . . . . . 3 . Tunneler 7 | 3 2 1 . . . . . . . . . . . . . . . . . . . . . . . . . . . 1 . Hauler 25 | . . 3 4 . . 3 . 3 . . . . 4 . 2 . . . . . . . . . 3 . . . . 3 . Recycler 22 | 1 1 1 3 2 . . . . . . . . 2 . 1 2 . . . 2 . 1 . . . 1 1 1 . 2 1 Minesweeper 2 | . . . . . . . . . . 2 . . . . . . . . . . . . . . . . . . . . . Mechanic 13 | . . . . . . . . . . . . . . . . . . . . . . . . . . . . . 12 1 . Operator 15 | . . . 3 . . 1 . 1 . . . . 1 . . 2 . 3 . . . . . . . . 1 1 2 . . Drone 8 | . . . . . . . . . . . . . . . . . . . . . . . . . . . . . 8 . . Watcher 22 | . 1 1 1 . . 1 . 2 . . . . 2 . . 2 . . . 1 . . . . 2 2 . . 1 6 . Swarmer 67 | . 9 19 3 . . 3 . . . . . . . . 8 . . . . 4 . . . . . . . . 18 3 . Cutter 5 | . . . . . . . . . . . . . . . . . . . . . . . . . . . . . . 5 . Saboteur 13 | . . . . . . . . . . . . . . . . . . . . . . . 1 . . . . . 11 1 . Grunt 93 | . 5 7 7 . . . . 1 . . . . . . . 8 . . . . . . . . 1 . . . 33 31 . Brawler 9 | . . . . . . . . . . . . . . . . . . . . . . . . . . . . . 6 3 . Duelist 11 | . . . . . . . . . . . . . . . . . . . . . . . . . . . . . 8 3 . Protector 6 | . . . . . . . . . . . . . . . . . . . . . . . . . . . . . 6 . . Researcher 1 | . . . . . . . . . . . . . . . . . . . . . . . . . . . . . 1 . . Sentry 30 | . . 9 9 . . . . . . . . . . . . . . . . . . . . . . . . . 12 . . Hunter 21 | . . . . . . . . . . . . . . . . . . . . . . . . . . . . . 17 4 . Programmer 19 | . . . . . . 2 . . . . . . . . . . . . . . . . . . . . . . 16 1 . Behemoth 1 | . . . . . . . . . . . . . . . . 1 . . . . . . . . . . . . . . . Compactor 1 | . . . . . . . 1 . . . . . . . . . . . . . . . . . . . . . . . . Hotshot 5 | . . . . . . . . . . . . . . . . . . . . . . . . . . . . . 5 . . Decapitator 10 | . . . . . . . . . . . . . . . . . . . . . . . . . . . . . 10 . . Immortal 4 | . . . . . . . . . . . . . . . . . . . . . . . . . . . . . 4 . . Striker 15 | . . . . . . . . . . . . . . . . . . . . . . . . . . . . . 11 4 . Executioner 23 | . . . . . . . . . . . . . . . . . . . . . . . . . . . . . 21 2 . Alpha 7 2 | . . . . . . . . . . . . . . . . . . . . . . . . . . . . . 2 . . V-Series 1 | . . . . . . . . . . . . . . . . . . . . . . . . . . . . . 1 . . Elite 2 | . . . . . . . . . . . . . . . . . . . . . . . . . . . . . 2 . . Scrapoid 6 | . . . . . . . . . . . . . . . . . . . . . . . . . . . . . 6 . . Scraphulk 2 | . . . . . . . . . . . . . . . . . . . . . . . . . . . . . 2 . . Thug 1 | . . . . . . . . . . . . . . . . 1 . . . . . . . . . . . . . . . Martyr 2 | . . . . . . . 2 . . . . . . . . . . . . . . . . . . . . . . . . Best Kill Streak 34 | 3 5 7 7 1 . 3 1 1 . 1 . . 3 . 6 5 . 2 . 5 . 1 1 . 2 3 1 1 34 24 1 Combat Bots Only 32 | . 5 7 5 . . 3 1 1 . . . . . . 5 3 . . . 4 . . 1 . 1 . . . 32 19 . Max Kills in Single Turn 6 | 1 1 2 2 1 . 3 1 1 . 1 . . 1 . 3 2 1 1 . 3 . 1 1 . 1 1 1 1 6 5 1 Gunslinging 1 | . . 1 . . . . . . . . . . . . . . . . . . . . . . . . . . . . . Exploded 6 | . . . . . . 3 . . . . . . . . 3 1 . . . 2 . . . . . . . . 6 3 . Melee 1 | . . . . . . 1 . 1 . . . . . . . . . . . . . . 1 . 1 . . . 1 . . Uniques/NPCs Destroyed 2 | . . . . . . . . . . . . . . . . . 1 . . . . . . . . . . . . 1 . A7 (-5/Cetus) DW-4LL (-1/Access) Combat | -11 -10 -9 -9 -9 -9 -6 -6 -6 -6 -6 -6 -5 -5 -5 -5 -5 -5 -5 -5 -4 -4 -4 -4 -4 -3 -3 -2 -2 -2 -1 -1 -------- Run | Yrd Mat Mat Sto Rec Scr Fac Was Fac Low Low Dat Pro Fac Was Fac Ext Cet Arc Hub Fac Was Fac Arm Lab Res Qua Res Tes Frg Acc Com Hostile Shots Fired 1894 | . 87 184 96 6 . 136 . 22 . . . 17 9 . 41 49 7 3 12 27 . 12 204 . 14 8 8 2 276 650 24 Missed 749 | . 20 49 18 3 . 78 . 9 . . . 7 5 . 25 20 3 3 5 17 . 6 124 . 6 6 6 1 148 176 14 Deflected 35 | . . . . . . . . . . . . . . . . . . . . . . . . . . . . . 5 29 1 Hits 1145 | . 67 135 78 3 . 58 . 13 . . . 10 4 . 16 29 4 . 7 10 . 6 80 . 8 2 2 1 128 474 10 Melee 24 | . . . . . . . . . . . . . . . . . . . . . . . 1 . . . . . 13 10 . Projectile 1121 | . 67 135 78 3 . 58 . 13 . . . 10 4 . 16 29 4 . 7 10 . 6 79 . 8 2 2 1 115 464 10 AOE 12 | . . . . . . 1 . . . . . . . . . . . . . . . . 2 . . . . . 8 1 . Critical Strikes 56 | . . 2 5 . . 1 . 1 . . . . 1 . 1 1 . . . 1 . . . . . . . . 19 24 . Actively Blocked 37 | . . . . . . . . . . . . . . . . . . . . . . . . . . . . . 16 21 . Damage Taken 23813 | . 581 1410 996 43 . 773 . 264 . . . 182 79 . 356 727 97 . 219 264 . 120 1241 . 193 87 45 . 4434 11467 235 Core 3416 | . 112 210 43 . . 115 . 17 . . . 19 19 . 23 111 58 . 93 113 . 57 301 . 41 . . . 461 1460 163 Absorbed by Shields 1337 | . . . . . . . . . . . . . . . . 22 12 . . . . . . . . . . . 411 892 . Reduced by Siege Mode 416 | . . . . . . . . . . . . . . . . . . . . . . . . . . . . . . 416 . Redirected to Shielding 252 | . . . . . . . . . . . . . . . . . . . . . . . . . . . . . . 252 . Regen/Repaired (Parts) 4279 | . 50 . 71 . . 42 12 120 . . . . 54 . . . 1 . . 45 . . 68 . 268 . . 28 455 3065 . Core Remaining (%) 69 | 100 55 . . . 36 . . . . . . 82 . . . . . . 69 . . . . 59 . 96 . . 62 . . Volleys Fired 1086 | 17 80 81 75 5 . 10 23 17 7 . . 3 2 . 22 76 8 2 1 8 . 6 5 . . 1 . . 457 180 . Largest 3 | 2 2 3 3 3 . 2 1 1 1 . . 1 1 . 1 1 1 1 1 1 . 1 1 . . 1 . . 2 2 . Hottest 280 | 40 100 100 69 69 . 46 40 40 40 . . 40 47 . 47 47 47 33 47 47 . 47 47 . . 10 . . 280 180 . Shots Fired 1487 | 34 151 233 222 15 . 12 24 17 7 . . 3 2 . 22 76 8 2 1 8 . 5 5 . . 1 . . 459 180 . Gun 687 | 34 142 229 222 15 . 4 . . . . . . . . . . 2 2 . 2 . . . . . . . . 24 11 . Cannon 671 | . . . . . . 7 24 17 7 . . 3 1 . 16 50 6 . 1 4 . 5 5 . . . . . 367 158 . Launcher 105 | . . . . . . 1 . . . . . . . . 5 18 . . . 2 . . . . . . . . 68 11 . Special 24 | . 9 4 . . . . . . . . . . 1 . 1 8 . . . . . . . . . 1 . . . . . Kinetic 808 | 34 142 229 222 15 . 11 24 17 7 . . 3 1 . 16 50 8 2 1 6 . 5 5 . . . . . 10 . . Thermal 539 | . 9 4 . . . . . . . . . . . . 1 . . . . . . . . . . . . . 367 158 . Explosive 104 | . . . . . . 1 . . . . . . . . 4 18 . . . 2 . . . . . . . . 68 11 . Electromagnetic 1 | . . . . . . . . . . . . . . . 1 . . . . . . . . . . . . . . . . Entropic 25 | . . . . . . . . . . . . . . . . . . . . . . . . . . . . . 14 11 . Robot Hit Streak 17 | 8 12 14 15 5 . 1 5 2 . . . . 1 . 3 14 11 1 . . . . . . . . . . 17 14 . Robot Miss Streak 6 | 2 6 6 4 1 . 2 3 3 . . . . . . 3 4 2 . . . . . . . . . . . 4 3 . Penetration Max 1 | . . . . . . . . 1 . . . . . . . . . . . . . . . . . . . . 1 1 . Secondary Targets 25 | . 5 14 6 . . . . . . . . . . . . . . . . . . . . . . . . . . . . Max Gunslinging Chain 2 | . 1 2 1 . . . . . . . . . . . . . . . . . . . . . . . . . . . . Capacitor 391 | . . . . . . . . . . . . . . . . . . . . . . . . . . . . . 259 132 . Shots Hit Robots 931 | 21 79 137 133 8 . 21 17 21 . 5 . 2 21 . 14 49 6 5 1 2 . 2 1 . 12 3 4 3 244 118 2 Core Hits 659 | 7 37 62 47 4 . 11 4 10 . 2 . . 9 . 17 31 3 3 . 6 . 1 1 . 5 2 2 2 298 94 1 Critical Kills 36 | . 1 1 1 . . . . . . . . . . . . . . . . . . . . . . . . . 26 7 . Critical Parts Destroyed 6 | . 1 3 1 . . 1 . . . . . . . . . . . . . . . . . . . . . . . . . Critical Strikes 55 | . 2 4 2 . . 1 3 . . 1 . . 1 . 4 1 . . . . . . . . 1 . . . 28 7 . Meltdown 32 | . . . . . . . . . . . . . . . . . . . . . . . . . . . . . 25 7 . Destroy 9 | . 2 4 2 . . . . . . . . . . . . . . . . . . . . . . . . . 1 . . Blast 4 | . . . . . . . 2 . . . . . . . 1 1 . . . . . . . . . . . . . . . Smash 1 | . . . . . . 1 . . . . . . . . . . . . . . . . . . . . . . . . . Sever 9 | . . . . . . . 1 . . 1 . . 1 . 3 . . . . . . . . . 1 . . . 2 . . Melee Attacks 503 | . . . 10 . . 67 4 55 7 16 . 24 39 . 48 12 3 5 7 40 . 17 19 6 45 18 13 8 34 2 4 Impact 39 | . . . 10 . . 29 . . . . . . . . . . . . . . . . . . . . . . . . . Slashing 462 | . . . . . . 38 4 55 7 16 . 24 39 . 48 12 3 5 7 40 . 17 19 6 45 18 13 8 32 2 4 Piercing 2 | . . . . . . . . . . . . . . . . . . . . . . . . . . . . . 2 . . Sneak Attacks 68 | . . . 3 . . 6 4 10 . 2 . 1 10 . 3 5 3 3 1 2 . 2 . . 3 2 1 2 3 . 2 Combat Hostiles 1 | . . . . . . . . 1 . . . . . . . . . . . . . . . . . . . . . . . Follow-up Attacks 1 | . . . . . . 1 . . . . . . . . . . . . . . . . . . . . . . . . . Damage Inflicted 79650 | 216 778 1811 2261 125 . 1222 889 1932 . 263 . 141 1603 . 1685 3739 378 379 69 770 . 238 72 . 991 269 347 282 42471 16419 300 Guns 6094 | 216 778 1805 2117 125 . 54 . . . . . . . . . . 26 26 . . . . . . . . . . 559 388 . Cannons 31384 | . . . . . . . 467 110 . . . . . . 67 1266 168 . . . . . . . . . . . 18831 10475 . Explosions 31223 | . . 6 . . . 178 . . . . . . . . 890 1834 . . . 610 . . . . . . . . 22149 5556 . Melee 10949 | . . . 144 . . 990 422 1822 . 263 . 141 1603 . 728 639 184 353 69 160 . 238 72 . 991 269 347 282 932 . 300 Ramming . | . . . . . . . . . . . . . . . . . . . . . . . . . . . . . . . . Kinetic 7283 | 216 778 1805 2117 125 . 54 467 110 . . . . . . 67 1266 194 26 . . . . . . . . . . 58 . . Thermal 29312 | . . 6 . . . . . . . . . . . . . . . . . . . . . . . . . . 18831 10475 . Explosive 30848 | . . . . . . 178 . . . . . . . . 754 1834 . . . 610 . . . . . . . . 22149 5323 . Electromagnetic 369 | . . . . . . . . . . . . . . . 136 . . . . . . . . . . . . . . 233 . Impact 395 | . . . 144 . . 251 . . . . . . . . . . . . . . . . . . . . . . . . . Slashing 10554 | . . . . . . 739 422 1822 . 263 . 141 1603 . 728 639 184 353 69 160 . 238 72 . 991 269 347 282 932 . 300 Piercing . | . . . . . . . . . . . . . . . . . . . . . . . . . . . . . . . . Entropic 889 | . . . . . . . . . . . . . . . . . . . . . . . . . . . . . 501 388 . Highest Corruption 12 | . . . . . . 2 2 2 2 2 2 2 . 8 8 . . . 1 . 5 5 5 5 . . . . 11 7 12 Average Corruption 4 | . . . . . . 1 2 2 2 2 2 2 . 8 7 . . . 1 . 5 5 5 5 . . . . 5 6 10 Corruption Purged 32 | . . . . . . . . . . . . . . . 8 . . . . . . . . . . . . . 24 . . Corruption Blocked . | . . . . . . . . . . . . . . . . . . . . . . . . . . . . . . . . Effects 163 | . . . . . . 12 1 13 3 1 . . . . 23 . . . . . 2 6 9 5 . . . . 55 26 7 Message Errors 43 | . . . . . . 1 . 4 1 . . . . . 5 . . . . . . 2 5 2 . . . . 17 5 1 Matter Fused 47 | . . . . . . 7 . 3 . 1 . . . . 9 . . . . . 1 2 1 1 . . . . 14 7 1 Heat Flow Errors 19 | . . . . . . . . 3 . . . . . . 2 . . . . . . . 1 2 . . . . 7 3 1 Energy Discharges 16 | . . . . . . 3 . 1 1 . . . . . 3 . . . . . . . . . . . . . 6 2 . Parts Rejected 4 | . . . . . . . . . . . . . . . 1 . . . . . . . . . . . . . 1 2 . Parts Fused 2 | . . . . . . . . . . . . . . . . . . . . . . . . . . . . . 1 . 1 Data Loss (minor) 17 | . . . . . . . . 2 . . . . . . 2 . . . . . 1 1 2 . . . . . 6 3 . Data Loss (major) 5 | . . . . . . 1 . . 1 . . . . . 1 . . . . . . . . . . . . . 1 1 . Misfires 2 | . . . . . . . 1 . . . . . . . . . . . . . . . . . . . . . . 1 . Alerts 1 | . . . . . . . . . . . . . . . . . . . . . . . . . . . . . . . 1 Misdirections 2 | . . . . . . . . . . . . . . . . . . . . . . . . . . . . . . . 2 Weapon Failures 5 | . . . . . . . . . . . . . . . . . . . . . . 1 . . . . . . 2 2 . Overload Shots . | . . . . . . . . . . . . . . . . . . . . . . . . . . . . . . . . Overflow Damage 5273 | . . . 59 . . 183 81 312 . 79 . 102 326 . 147 197 . 26 . 65 . 77 . . 75 58 55 22 1898 1419 92 Projectiles 2318 | . . . . . . . . . . . . . . . 15 14 . . . . . . . . . . . . 1080 1209 . Explosions 1053 | . . . . . . . . . . . . . . . 39 24 . . . 65 . . . . . . . . 715 210 . Melee 1902 | . . . 59 . . 183 81 312 . 79 . 102 326 . 93 159 . 26 . . . 77 . . 75 58 55 22 103 . 92 Knockbacks 4 | . . . 1 . . . 1 1 . . . . . . . 1 . . . . . . . . . . . . . . . Impact 1 | . . . 1 . . . . . . . . . . . . . . . . . . . . . . . . . . . . Kinetic 3 | . . . . . . . 1 1 . . . . . . . 1 . . . . . . . . . . . . . . . Secondary . | . . . . . . . . . . . . . . . . . . . . . . . . . . . . . . . . Self-Inflicted Damage 516 | . . 8 . . . . . . . . . . . . 39 . . . . 80 . . . . . . . . 297 92 . Shots 10 | . . 1 . . . . . . . . . . . . 1 . . . . 1 . . . . . . . . 6 1 . Rammed . | . . . . . . . . . . . . . . . . . . . . . . . . . . . . . . . . Targets Rammed . | . . . . . . . . . . . . . . . . . . . . . . . . . . . . . . . . Kicked . | . . . . . . . . . . . . . . . . . . . . . . . . . . . . . . . . Crushed . | . . . . . . . . . . . . . . . . . . . . . . . . . . . . . . . . Highest Temperature 498 | . 40 257 263 18 . 186 314 474 3 . . 304 16 . 222 106 28 4 40 33 2 32 184 229 . . 21 10 182 498 112 Average Temperature 68 | . 11 37 76 8 . 53 101 78 2 . . 157 12 . 65 32 16 4 26 11 1 4 31 108 . . 5 8 63 141 78 Received Heat Transfer 2822 | . 102 273 381 18 . 219 . 15 . . . 75 . . 99 67 . . 18 48 . 12 168 . 45 21 . . 147 1096 18 Effects 13 | . . . . . . . 2 8 . . . . . . . . . . . . . . . . . . . . . 3 . Shutdowns 2 | . . . . . . . . . . . . . . . . . . . . . . . . . . . . . . 2 . Energy Bleed 1 | . . . . . . . . 1 . . . . . . . . . . . . . . . . . . . . . . . Interference 5 | . . . . . . . 2 3 . . . . . . . . . . . . . . . . . . . . . . . Short Circuit 1 | . . . . . . . . . . . . . . . . . . . . . . . . . . . . . . 1 . Damage (minor) 1 | . . . . . . . . 1 . . . . . . . . . . . . . . . . . . . . . . . Damage (major) 3 | . . . . . . . . 3 . . . . . . . . . . . . . . . . . . . . . . . Siege Activations 2 | . . . . . . . . . . . . . . . . . . . . . . . . . . . . . . 2 . Total Turns 44 | . . . . . . . . . . . . . . . . . . . . . . . . . . . . . . 44 . Longest Duration 23 | . . . . . . . . . . . . . . . . . . . . . . . . . . . . . . 23 . Martial Activations . | . . . . . . . . . . . . . . . . . . . . . . . . . . . . . . . . Shielding Activations . | . . . . . . . . . . . . . . . . . . . . . . . . . . . . . . . . Robots Disrupted . | . . . . . . . . . . . . . . . . . . . . . . . . . . . . . . . . Combat Hostiles . | . . . . . . . . . . . . . . . . . . . . . . . . . . . . . . . . Robots Corrupted 2 | . . . 1 . . 1 . . . . . . . . . . . . . . . . . . . . . . . . . Combat Hostiles . | . . . . . . . . . . . . . . . . . . . . . . . . . . . . . . . . Parts Fried 1 | . . . 1 . . . . . . . . . . . . . . . . . . . . . . . . . . . . Impact Corruptions 4 | . . . 2 . . 2 . . . . . . . . . . . . . . . . . . . . . . . . . Robots Melted 34 | . . . . . . . . . . . . . . . . . . . . . . . . . . . . . 26 8 . Combat Hostiles 33 | . . . . . . . . . . . . . . . . . . . . . . . . . . . . . 26 7 . Parts Melted 65 | . . . . . . . . . . . . . . . . . . . . . . . . . . . . . 51 14 . Heat Transferred 17516 | . . 50 . . . . . . . . . . . . . . . . . . . . . . . . . . 11670 5796 . Parts Sabotaged 1 | . . . . . . . . . . . . . . . . . . . . . . . 1 . . . . . . . . Parts Stolen . | . . . . . . . . . . . . . . . . . . . . . . . . . . . . . . . . Parts Stripped . | . . . . . . . . . . . . . . . . . . . . . . . . . . . . . . . . Power Chain Reactions . | . . . . . . . . . . . . . . . . . . . . . . . . . . . . . . . . Alert | -11 -10 -9 -9 -9 -9 -6 -6 -6 -6 -6 -6 -5 -5 -5 -5 -5 -5 -5 -5 -4 -4 -4 -4 -4 -3 -3 -2 -2 -2 -1 -1 ------- Run | Yrd Mat Mat Sto Rec Scr Fac Was Fac Low Low Dat Pro Fac Was Fac Ext Cet Arc Hub Fac Was Fac Arm Lab Res Qua Res Tes Frg Acc Com Maximum Alert Level 5 | . 1 2 2 . . . . 1 . . . . . . 2 2 1 1 1 . . . 2 . . . . . 5 5 5 Low Security (%) 56 | 100 97 67 19 100 . 100 100 98 . . . . 100 100 20 . 9 91 83 100 100 100 80 . 100 100 100 100 13 . . Level 1 15 | . 2 21 77 . . . . 1 . . . . . . 7 73 90 8 16 . . . 18 . . . . . 5 . . Level 2 10 | . . 11 3 . . . . . . . . . . . 71 26 . . . . . . . . . . . . 24 . . Level 3 2 | . . . . . . . . . . . . . . . . . . . . . . . . . . . . . 10 . . Level 4 . | . . . . . . . . . . . . . . . . . . . . . . . . . . . . . 4 . . Level 5 13 | . . . . . . . . . . . . . . . . . . . . . . . . . . . . . 41 79 100 High Security 1 | . . . . . . . . . . . . . . . . . . . . . . . . . . . . . . 20 . Max Security . | . . . . . . . . . . . . . . . . . . . . . . . . . . . . . . . . Peak Influence 5739 | 10 210 540 415 76 . 169 47 234 . . . . 49 . 680 590 339 242 261 148 11 33 413 . 198 101 66 85 5739 5531 3653 Initial 3539 | . . 16 217 56 . . 47 . . . . . 34 . . 270 179 123 . 53 11 . 16 . . 101 . 3 2 3439 3539 Average 717 | 1 94 200 296 11 . 96 12 73 . . . . 9 . 431 356 254 55 84 29 2 5 76 . 53 44 25 44 1718 4283 3588 Influence Increases 18008 | 20 428 1006 667 143 . 617 76 598 . 10 . 95 131 . 1010 1074 330 209 311 388 . 90 578 . 428 101 133 122 6584 2682 177 Destroy 0b10 Robot/C 7400 | . 280 700 380 . . 100 . 180 . . . . . . 160 420 160 80 80 80 . . 20 . 20 . . . 3600 1140 . Destroy 0b10 Robot/NC 790 | 20 35 30 65 15 . 35 . 50 . 10 . 5 55 . 20 60 10 15 . 15 . 5 . . 25 15 10 10 150 125 10 Destroy Leader 1252 | . 62 168 140 . . 38 . 50 . . . . 12 . 24 34 . . 20 12 . . . . 10 4 . . 512 166 . Allied During Kill 589 | . . . . . . . . 153 . . . . . . . 104 140 95 97 . . . . . . . . . . . . Successful Hack 646 | . 11 18 32 7 . 63 . 21 . . . . 23 . 86 4 8 . . 45 . 32 5 . 80 21 90 49 10 27 14 Select Force Hacks 120 | . . . . 120 . . . . . . . . . . . . . . . . . . . . . . . . . . . Disable Machine 1245 | . . 30 30 . . 60 . 30 . . . . 15 . 90 90 . 15 15 30 . . . . 45 45 . 60 555 135 . Anti-Garrison Action 150 | . . . . . . . . . . . . . . . . . . . . . . . . . . . . . . 150 . Destroy Structure 2816 | . 10 45 5 1 . 36 76 39 . . . . 26 . 150 332 12 4 24 116 . 38 28 . 38 16 18 3 1202 594 3 Partial Spotted 630 | . . . . . . 90 . 45 . . . . . . 45 30 . . 75 45 . 15 45 . 90 . 15 . 75 45 15 Lose Combat Pursuer 2370 | . 30 15 15 . . 195 . 30 . . . 90 . . 435 . . . . 45 . . 480 . 120 . . . 480 300 135 Influence Decreases 14382 | 20 388 532 1035 289 . 480 213 583 15 10 . 40 186 . 456 1308 341 518 200 465 34 57 198 413 247 282 127 123 857 2883 2082 Entered New Map 6021 | . . 24 297 90 . . 90 . 6 . . . 21 . . 284 141 186 . 58 23 . 17 413 . 80 . 3 3 2293 1992 Time Decay 6242 | 20 378 488 568 189 . 450 83 375 9 10 . 40 165 . 316 474 150 272 60 245 11 57 102 . 237 135 117 120 701 380 90 Search Patrol Dispatched 100 | . . . . . . . . . . . . . . . 100 . . . . . . . . . . . . . . . . Lost Part 613 | . 10 20 20 10 . 20 . . . . . . . . 20 70 10 . . . . . 60 . 10 . . . 153 210 . Lost Ally 747 | . . . . . . 10 40 208 . . . . . . 20 180 40 60 140 10 . . 19 . . 10 10 . . . . Purge Threat 659 | . . . 150 . . . . . . . . . . . . 300 . . . 152 . . . . . 57 . . . . . Squads Dispatched 126 | . 3 1 3 . . 13 . 14 . . . 1 10 . 14 2 . . 4 9 . 3 3 . 6 2 2 1 7 25 3 Investigation 54 | . 2 . . . . 9 . 11 . . . . 7 . 8 1 . . 2 6 . 2 1 . 3 . . . 2 . . Extermination 22 | . . . . . . 3 . 2 . . . . 1 . 3 . . . . 3 . 1 1 . . 2 2 1 1 1 1 Reinforcement 30 | . 1 1 2 . . 1 . 1 . . . . 2 . 2 . . . 2 . . . 1 . 3 . . . 4 8 2 Assault 19 | . . . . . . . . . . . . 1 . . 1 1 . . . . . . . . . . . . . 16 . Garrison 1 | . . . 1 . . . . . . . . . . . . . . . . . . . . . . . . . . . . Intercept . | . . . . . . . . . . . . . . . . . . . . . . . . . . . . . . . . Searches Triggered 1 | . . . . . . . . . . . . . . . 1 . . . . . . . . . . . . . . . . Unchained Authorized 2 | . . . . . . . . . . . . . . . . . . . . . . . . . . . . 1 . 1 . Data Miner Redirects 10 | . . . . . . . . . . . . . . . 4 1 . . 2 . . . . . . . . . . 3 . Construction Impeded 1 | . . . . . . . . . . . . . 1 . . . . . . . . . . . . . . . . . . Haulers Reinforced 7 | . . . . . . 1 . . . . . . 1 . 1 . . . . . . . . . 2 . . . . 2 . Active Scanning Responses . | . . . . . . . . . . . . . . . . . . . . . . . . . . . . . . . . Cargo Convoy Interrupts . | . . . . . . . . . . . . . . . . . . . . . . . . . . . . . . . . Stealth | -11 -10 -9 -9 -9 -9 -6 -6 -6 -6 -6 -6 -5 -5 -5 -5 -5 -5 -5 -5 -4 -4 -4 -4 -4 -3 -3 -2 -2 -2 -1 -1 --------- Run | Yrd Mat Mat Sto Rec Scr Fac Was Fac Low Low Dat Pro Fac Was Fac Ext Cet Arc Hub Fac Was Fac Arm Lab Res Qua Res Tes Frg Acc Com Distress Signals 63 | . 1 4 4 . . 4 . 1 . . . . 1 . 4 4 1 . 1 1 . 2 2 . 6 . 3 . 19 4 1 Communications Jammed 25 | . . . . . . . . . . . . . . . . . . . . . . . . . . . . . . 25 . Distress Signals 25 | . . . . . . . . . . . . . . . . . . . . . . . . . . . . . . 25 . Times Spotted 898 | . 27 46 35 3 . 49 6 19 . . . 18 7 3 51 28 11 6 13 24 6 20 61 . 24 10 13 4 294 97 23 Peak Tracking Total 27 | . 6 7 6 1 . 10 2 5 . . . 17 4 3 14 5 5 2 10 15 6 20 27 . 6 4 7 3 15 16 14 Tactical Retreats 92 | . 1 1 1 . . 12 . 3 . . . 3 1 . 11 8 . . . 6 . 3 7 . 4 2 . . 19 8 2 ECM-based Alert Blocks 82 | . . . . . . 18 . 2 . . . 16 4 . 12 13 . . . 5 . 5 . . . 7 . . . . . Traps | -11 -10 -9 -9 -9 -9 -6 -6 -6 -6 -6 -6 -5 -5 -5 -5 -5 -5 -5 -5 -4 -4 -4 -4 -4 -3 -3 -2 -2 -2 -1 -1 ------- Run | Yrd Mat Mat Sto Rec Scr Fac Was Fac Low Low Dat Pro Fac Was Fac Ext Cet Arc Hub Fac Was Fac Arm Lab Res Qua Res Tes Frg Acc Com Traps Triggered 37 | . 1 . . . . 4 . 2 . . . . 2 . 1 2 . . 1 5 . . . . 1 1 . . 16 1 . Indirectly . | . . . . . . . . . . . . . . . . . . . . . . . . . . . . . . . . Trap Hack Attempts . | . . . . . . . . . . . . . . . . . . . . . . . . . . . . . . . . Triggered . | . . . . . . . . . . . . . . . . . . . . . . . . . . . . . . . . Disarmed 1 | . . . . . . . . . . . . . . . . . . . . . . . . . . . 1 . . . . Reprogrammed . | . . . . . . . . . . . . . . . . . . . . . . . . . . . . . . . . Reused . | . . . . . . . . . . . . . . . . . . . . . . . . . . . . . . . . Traps Extracted . | . . . . . . . . . . . . . . . . . . . . . . . . . . . . . . . . Installed . | . . . . . . . . . . . . . . . . . . . . . . . . . . . . . . . . Triggered . | . . . . . . . . . . . . . . . . . . . . . . . . . . . . . . . . Machines | -11 -10 -9 -9 -9 -9 -6 -6 -6 -6 -6 -6 -5 -5 -5 -5 -5 -5 -5 -5 -4 -4 -4 -4 -4 -3 -3 -2 -2 -2 -1 -1 ---------- Run | Yrd Mat Mat Sto Rec Scr Fac Was Fac Low Low Dat Pro Fac Was Fac Ext Cet Arc Hub Fac Was Fac Arm Lab Res Qua Res Tes Frg Acc Com Machines Disabled 88 | . . 2 2 . . 4 . 2 . . . . 1 . 6 6 1 1 1 2 . . . 1 3 3 . 4 39 10 . Max in Single Turn 2 | . . 2 1 . . 1 . 1 . . . . 1 . 2 1 . . 1 1 . . . 1 1 1 . 1 2 1 . Garrison Access 5 | . . . 1 . . . . . . . . . . . . . . . . 1 . . . . . . 1 . 1 1 . Network Hub 1 | . . . . . . . . . . . . . . . . . . . 1 . . . . . . . . . . . . Energy Cycler 1 | . . . . . . . . . . . . . . . . . . . . . . . . . . . . . . 1 . Machines Repaired . | . . . . . . . . . . . . . . . . . . . . . . . . . . . . . . . . Machines Dismantled 3 | . . . . . . . . . . . . . . . . 2 . . 1 . . . . . . . . . . . . Machines Sabotaged . | . . . . . . . . . . . . . . . . . . . . . . . . . . . . . . . . Overloaded Fab Kills . | . . . . . . . . . . . . . . . . . . . . . . . . . . . . . . . . Hacking | -11 -10 -9 -9 -9 -9 -6 -6 -6 -6 -6 -6 -5 -5 -5 -5 -5 -5 -5 -5 -4 -4 -4 -4 -4 -3 -3 -2 -2 -2 -1 -1 --------- Run | Yrd Mat Mat Sto Rec Scr Fac Was Fac Low Low Dat Pro Fac Was Fac Ext Cet Arc Hub Fac Was Fac Arm Lab Res Qua Res Tes Frg Acc Com Machines Accessed 197 | . 7 10 11 9 5 21 . 23 . . 4 . 13 . 19 4 1 . 2 18 . 4 3 . 6 12 7 5 7 2 4 Terminals 106 | . 5 7 8 5 . 9 . 9 . . . . 4 . 11 4 1 . 2 8 . 2 2 . 4 9 5 3 3 1 4 Fabricators 8 | . . . . . . 2 . 2 . . . . . . . . . . . 2 . . . . 1 . . . . 1 . Repair Stations 13 | . 1 1 1 . . 2 . 2 . . . . 1 . . . . . . 1 . . 1 . 1 . . 1 1 . . Recycling Units 43 | . 1 1 1 4 . 7 . 8 . . . . 7 . 7 . . . . 4 . 2 . . . . . . 1 . . Scanalyzers 11 | . . 1 . . . . . 2 . . . . 1 . 1 . . . . 1 . . . . . 2 1 1 1 . . Garrison Access 7 | . . . 1 . . 1 . . . . . . . . . . . . . 2 . . . . . 1 1 . 1 . . Total Hacks 663 | . 17 25 23 22 35 40 . 44 . . 32 . 34 . 48 14 1 . 3 60 . 22 8 . 65 71 40 20 26 2 11 Successful 316 | . 6 14 15 14 35 21 . 21 . . 32 . 18 . 24 5 1 . 2 26 . 12 2 . 18 17 16 7 8 1 1 Failed 346 | . 11 11 8 8 . 19 . 22 . . . . 16 . 24 9 . . 1 34 . 10 6 . 47 54 24 13 18 1 10 Catastrophic 80 | . 1 1 1 . . 5 . 8 . . . . 1 . 4 2 . . . 6 . 1 3 . 13 15 6 5 3 1 4 Database Lockouts 1 | . . . . . . . . 1 . . . . . . . . . . . . . . . . . . . . . . . Manual 268 | . 5 17 2 17 . 24 . 22 . . . . 15 . 22 9 1 . 3 29 . 15 6 . 21 14 15 7 17 . 7 Terminals 382 | . 13 20 16 17 . 22 . 19 . . . . 7 . 34 14 1 . 3 29 . 20 7 . 25 59 34 14 16 1 11 Fabricators 28 | . . . . . . 2 . 7 . . . . . . . . . . . 9 . . . . 9 . . . . 1 . Repair Stations 62 | . 2 2 4 . . 5 . 7 . . . . 4 . . . . . . 1 . . 1 . 31 . . 4 1 . . Recycling Units 76 | . 2 1 2 5 . 10 . 8 . . . . 20 . 13 . . . . 10 . 2 . . . . . . 3 . . Scanalyzers 32 | . . 2 . . . . . 3 . . . . 3 . 1 . . . . 5 . . . . . 9 5 2 2 . . Garrison Access 16 | . . . 1 . . 1 . . . . . . . . . . . . . 6 . . . . . 3 1 . 4 . . Terminal Hacks 156 | . 3 4 10 3 35 4 . 2 . . 32 . 3 . 12 4 1 . . 11 . 6 1 . 3 8 7 3 2 1 1 Record 38 | . . . . . 25 . . . . . 11 . 1 . . . . . . 1 . . . . . . . . . . . Part Schematic 16 | . . . 3 . . 1 . . . . 11 . . . 1 . . . . . . . . . . . . . . . . Robot Schematic 8 | . . . 1 . . . . . . . 7 . . . . . . . . . . . . . . . . . . . . Robot Analysis 13 | . 1 . . . 9 . . . . . . . . . 1 1 . . . . . 1 . . . . . . . . . Prototype ID Bank 12 | . . . 1 . . . . . . . 3 . . . 2 . . . . 1 . 1 . . 1 2 1 . . . . Open Door 5 | . . . 3 . . . . . . . . . . . 1 . 1 . . . . . . . . . . . . . . Branch Access Points 8 | . . . . . . 1 . 1 . . . . 1 . 1 . . . . 1 . 1 . . 1 . 1 . . . . Machine Index 1 | . . . . . . . . . . . . . . . . . . . . . . . . . . 1 . . . . . Terminal Index 4 | . . . . 1 . . . . . . . . . . . . . . . 1 . 1 . . . . . . . 1 . Recycling Unit Index 1 | . . . . . . . . . . . . . . . . . . . . 1 . . . . . . . . . . . Alert Level 2 | . . . . 1 . . . . . . . . . . . . . . . . . . . . . . 1 . . . . Unreport Threat 6 | . . . 1 . . . . . . . . . . . . 2 . . . 2 . . . . . 1 . . . . . Locate Traps 15 | . . 2 1 . . 1 . . . . . . 1 . 2 1 . . . 2 . 1 . . . 1 1 . 1 . 1 Disarm Traps 1 | . . . . . . . . . . . . . . . . . . . . . . . . . . . 1 . . . . Recall Extermination 1 | . . . . . . . . . . . . . . . . . . . . . . . . . . 1 . . . . . Hauler Manifests 1 | . 1 . . . . . . . . . . . . . . . . . . . . . . . . . . . . . . Registered Components 9 | . 1 1 . . . 1 . 1 . . . . . . 1 . . . . 1 . . . . 1 1 1 . . . . Registered Prototypes 2 | . . . . . . . . . . . . . . . . . . . . 1 . . . . . . 1 . . . . Zone Layout 10 | . . 1 . 1 . . . . . . . . . . 3 . . . . . . 1 1 . . 1 . 1 1 . . Proto ID Catalog 1 | . . . . . 1 . . . . . . . . . . . . . . . . . . . . . . . . . . Protovariant Controls 2 | . . . . . . . . . . . . . . . . . . . . . . . . . . . . 2 . . . Fabricator Hacks 6 | . . . . . . 1 . . . . . . . . . . . . . 2 . . . . 3 . . . . . . Network Status 1 | . . . . . . 1 . . . . . . . . . . . . . . . . . . . . . . . . . Load Schematic 3 | . . . . . . . . . . . . . . . . . . . . 1 . . . . 2 . . . . . . Build 2 | . . . . . . . . . . . . . . . . . . . . 1 . . . . 1 . . . . . . Repair Station Hacks 25 | . 2 1 2 . . 3 . 4 . . . . 2 . . . . . . . . . . . 8 . . 3 . . . Scan Component 15 | . 1 1 1 . . 2 . 2 . . . . 1 . . . . . . . . . . . 5 . . 2 . . . Repair 10 | . 1 . 1 . . 1 . 2 . . . . 1 . . . . . . . . . . . 3 . . 1 . . . Recycling Unit Hacks 6 | . . 1 1 . . . . . . . . . 2 . . . . . . 2 . . . . . . . . . . . Retrieve Components 6 | . . 1 1 . . . . . . . . . 2 . . . . . . 2 . . . . . . . . . . . Scanalyzer 13 | . . 2 . . . . . 1 . . . . 3 . 1 . . . . 1 . . . . . 2 2 1 . . . Insert Component 3 | . . . . . . . . . . . . . 1 . . . . . . . . . . . . 1 . 1 . . . Retrieve Study 10 | . . 2 . . . . . 1 . . . . 2 . 1 . . . . 1 . . . . . 1 2 . . . . Garrison Access Hacks 4 | . . . 1 . . . . . . . . . . . . . . . . 1 . . . . . . 1 . 1 . . Seal Access 4 | . . . 1 . . . . . . . . . . . . . . . . 1 . . . . . . 1 . 1 . . Unauthorized Hacks 106 | . 1 6 1 11 . 13 . 14 . . . . 8 . 11 1 . . 2 9 . 6 1 . 4 7 6 . 5 . . Terminals 60 | . 1 6 1 7 . 6 . 4 . . . . 1 . 5 1 . . 2 3 . 4 . . 3 7 6 . 3 . . Track 5 | . . . . . . . . . . . . . . . . . . . . . . 1 . . . 1 1 . 2 . . Assimilate 9 | . . . . . . 2 . . . . . . . . 2 . . . . 1 . . . . 1 1 2 . . . . Botnet 32 | . 1 1 1 3 . 4 . 2 . . . . 1 . 3 1 . . . 2 . 2 . . 2 5 3 . 1 . . Disrupt 1 | . . . . . . . . . . . . . . . . . . . . . . 1 . . . . . . . . . Skim 11 | . . 5 . 4 . . . 2 . . . . . . . . . . . . . . . . . . . . . . . Sabotage 2 | . . . . . . . . . . . . . . . . . . . 2 . . . . . . . . . . . . Fabricators 3 | . . . . . . . . 1 . . . . . . . . . . . 1 . . . . 1 . . . . . . Prioritize 1 | . . . . . . . . . . . . . . . . . . . . . . . . . 1 . . . . . . Liberate 1 | . . . . . . . . 1 . . . . . . . . . . . . . . . . . . . . . . . Recompile 1 | . . . . . . . . . . . . . . . . . . . . 1 . . . . . . . . . . . Repair Stations 5 | . . . . . . 1 . 1 . . . . . . . . . . . 1 . . 1 . . . . . 1 . . Patch 5 | . . . . . . 1 . 1 . . . . . . . . . . . 1 . . 1 . . . . . 1 . . Recycling Units 38 | . . . . 4 . 6 . 8 . . . . 7 . 6 . . . . 4 . 2 . . . . . . 1 . . Tunnel 4 | . . . . 4 . . . . . . . . . . . . . . . . . . . . . . . . . . . Fedlink 34 | . . . . . . 6 . 8 . . . . 7 . 6 . . . . 4 . 2 . . . . . . 1 . . Scanalyzers . | . . . . . . . . . . . . . . . . . . . . . . . . . . . . . . . . Garrison Access . | . . . . . . . . . . . . . . . . . . . . . . . . . . . . . . . . Data Cores Recovered 8 | . . . 1 . . . . 1 . . . . 1 . . 2 . . . . . . . . 1 . 1 1 . . . Used 1 | . . . . . . . . . . . . . . . . . . . . . . . . . 1 . . . . . . Hacking Detections 128 | . 6 8 9 5 . 15 . 12 . . . . 8 . 13 4 1 . . 10 . 2 2 . 5 10 4 4 4 2 4 Full Trace Events 7 | . 1 . . 1 . 1 . 1 . . . . . . 2 . . . . . . . . . 1 . . . . . . Feedback Events 1 | . . . . . . 1 . . . . . . . . . . . . . . . . . . . . . . . . . Corruption 1 | . . . . . . 1 . . . . . . . . . . . . . . . . . . . . . . . . . Feedback Blocked . | . . . . . . . . . . . . . . . . . . . . . . . . . . . . . . . . Robot Schematics Acquired 9 | . . . 1 . . . . . . . 7 . . . . . . . . . . . . . . . . . 1 . . Robots Built . | . . . . . . . . . . . . . . . . . . . . . . . . . . . . . . . . Authchips . | . . . . . . . . . . . . . . . . . . . . . . . . . . . . . . . . Time . | . . . . . . . . . . . . . . . . . . . . . . . . . . . . . . . . Total Robot Build Rating . | . . . . . . . . . . . . . . . . . . . . . . . . . . . . . . . . Part Schematics Acquired 19 | . . . 3 . . 1 . . . . 11 . . . 1 . . . . . . . . . . . . . 3 . . Parts Built 2 | . . . . . . . . . . . . . . . . . . . . 1 . . . . 1 . . . . . . Authchips 1 | . . . . . . . . . . . . . . . . . . . . 1 . . . . . . . . . . . Time 126 | . . . . . . . . . . . . . . . . . . . . 50 . . . . 76 . . . . . . Total Part Build Rating 10 | . . . . . . . . . . . . . . . . . . . . 5 . . . . 5 . . . . . . Part Studies Acquired 10 | . . 2 . . . . . 1 . . . . 2 . 1 . . . . 1 . . . . . 1 2 . . . . Parts Repaired 10 | . 1 . 1 . . 1 . 2 . . . . 1 . . . . . . . . . . . 3 . . 1 . . . Time 485 | . 26 . 26 . . 51 . 102 . . . . 56 . . . . . . . . . . . 124 . . 100 . . . Parts Recycled . | . . . . . . . . . . . . . . . . . . . . . . . . . . . . . . . . Recycled Matter . | . . . . . . . . . . . . . . . . . . . . . . . . . . . . . . . . Retrieved Matter . | . . . . . . . . . . . . . . . . . . . . . . . . . . . . . . . . Retrieved Components 22 | . . 5 9 . . . . . . . . . 5 . . . . . . 3 . . . . . . . . . . . Parts Scanalyzed 1 | . . . . . . . . . . . . . . . . . . . . . . . . . . . . 1 . . . Part Schematics Acquired . | . . . . . . . . . . . . . . . . . . . . . . . . . . . . . . . . Parts Damaged . | . . . . . . . . . . . . . . . . . . . . . . . . . . . . . . . . Bothacking | -11 -10 -9 -9 -9 -9 -6 -6 -6 -6 -6 -6 -5 -5 -5 -5 -5 -5 -5 -5 -4 -4 -4 -4 -4 -3 -3 -2 -2 -2 -1 -1 ------------ Run | Yrd Mat Mat Sto Rec Scr Fac Was Fac Low Low Dat Pro Fac Was Fac Ext Cet Arc Hub Fac Was Fac Arm Lab Res Qua Res Tes Frg Acc Com Used RIF Installer . | . . . . . . . . . . . . . . . . . . . . . . . . . . . . . . . . Robots Hacked 1 | . . . . . . . . . . . . . 1 . . . . . . . . . . . . . . . . . . Non-combat 1 | . . . . . . . . . . . . . 1 . . . . . . . . . . . . . . . . . . Combat . | . . . . . . . . . . . . . . . . . . . . . . . . . . . . . . . . Robot Hacks Applied 1 | . . . . . . . . . . . . . 1 . . . . . . . . . . . . . . . . . . find_chute 1 | . . . . . . . . . . . . . 1 . . . . . . . . . . . . . . . . . . Relay Couplers Released . | . . . . . . . . . . . . . . . . . . . . . . . . . . . . . . . . Fabnet Peak Effective % . | . . . . . . . . . . . . . . . . . . . . . . . . . . . . . . . . Robots Rewired 8 | . . . . . . . . . . . . . . . . 6 . . . . . . 2 . . . . . . . . Allies Hacked 1 | . . . . . . . . 1 . . . . . . . . . . . . . . . . . . . . . . . Hacks Repelled . | . . . . . . . . . . . . . . . . . . . . . . . . . . . . . . . . Allies | -11 -10 -9 -9 -9 -9 -6 -6 -6 -6 -6 -6 -5 -5 -5 -5 -5 -5 -5 -5 -4 -4 -4 -4 -4 -3 -3 -2 -2 -2 -1 -1 -------- Run | Yrd Mat Mat Sto Rec Scr Fac Was Fac Low Low Dat Pro Fac Was Fac Ext Cet Arc Hub Fac Was Fac Arm Lab Res Qua Res Tes Frg Acc Com Total Allies 56 | . . . . . . 1 20 3 . . . . . 1 2 18 5 . . 1 . . 2 . . 1 2 . . . . Largest Group 20 | . . . . . . 1 20 10 . . . . . 1 1 9 12 10 7 1 . . 2 . . 1 2 . . . . Highest-Rated Group 812 | . . . . . . 10 733 406 . . . . . 31 26 367 812 627 545 26 . . 100 . . 26 36 . . . . Highest-Rated Ally 159 | . . . . . . 10 50 47 . . . . . 31 26 159 159 96 96 26 . . 50 . . 26 26 . . . . Total Orders 5 | . . . . . . . . . . . . . . . . . 2 3 . . . . . . . . . . . . . AID 5 | . . . . . . . . . . . . . . . . . 2 3 . . . . . . . . . . . . . Ally Attacks 376 | . . . . . . . 73 55 . . . . . 4 . 98 67 36 30 . . . 13 . . . . . . . . Total Damage 12021 | . . . . . . . 4509 1380 . . . . . 41 . 2022 1474 1169 767 . . . 659 . . . . . . . . Kills 52 | . . . . . . . 11 8 . . . . . . . 15 10 4 4 . . . . . . . . . . . . Allies Corrupted 5 | . . . . . . . . . . . . . . . . 1 . . 4 . . . . . . . . . . . . Allies Melted 5 | . . . . . . . . . . . . . . . . 1 . . . . . . . . . . . . 4 . . Intel | -11 -10 -9 -9 -9 -9 -6 -6 -6 -6 -6 -6 -5 -5 -5 -5 -5 -5 -5 -5 -4 -4 -4 -4 -4 -3 -3 -2 -2 -2 -1 -1 ------- Run | Yrd Mat Mat Sto Rec Scr Fac Was Fac Low Low Dat Pro Fac Was Fac Ext Cet Arc Hub Fac Was Fac Arm Lab Res Qua Res Tes Frg Acc Com Active Infowar (turns) 17863 | 15 1097 556 19 . . 1183 224 959 163 216 25 212 621 17 729 1214 313 1294 123 799 86 194 346 253 757 322 314 254 4311 1052 195 Optics 15873 | . . . . . . 1133 224 959 163 216 25 212 621 17 729 1214 313 1294 123 799 86 194 346 253 757 322 314 254 4311 994 . Sensors 13699 | . . . . . . 1140 186 959 163 216 25 212 617 17 711 1199 313 1294 123 799 86 194 346 253 757 322 314 254 2066 938 195 Seismic 1746 | 15 1097 556 19 . . 43 . . . . . . . . 16 . . . . . . . . . . . . . . . . Jamming 1136 | . . . . . . . . . . . . . . . . . . . . . . . . . . . . 168 399 569 . ECM 2793 | . . . . . . 228 . 254 . . . 69 621 . 231 686 . . . 348 . 134 . . 1 199 . 22 . . . Robot Analysis Total 13 | . 1 . . . 9 . . . . . . . . . 1 1 . . . . . 1 . . . . . . . . . Derelict Logs Recovered 4 | . . . . . . . . . 2 1 . 1 . . . . . . . . . . . . . . . . . . . Drone Launches . | . . . . . . . . . . . . . . . . . . . . . . . . . . . . . . . . Drone Recoveries . | . . . . . . . . . . . . . . . . . . . . . . . . . . . . . . . . Exploration | -11 -10 -9 -9 -9 -9 -6 -6 -6 -6 -6 -6 -5 -5 -5 -5 -5 -5 -5 -5 -4 -4 -4 -4 -4 -3 -3 -2 -2 -2 -1 -1 ------------- Run | Yrd Mat Mat Sto Rec Scr Fac Was Fac Low Low Dat Pro Fac Was Fac Ext Cet Arc Hub Fac Was Fac Arm Lab Res Qua Res Tes Frg Acc Com Turns Passed 23993 | 120 1097 1621 1719 1085 2090 1198 224 959 163 216 25 212 621 17 729 1214 313 1294 123 799 86 194 346 253 757 322 314 254 4311 1122 195 Spaces Moved 30667 | 53 428 705 625 544 1101 2319 329 1846 517 653 91 477 983 69 1637 1642 238 101 291 1421 198 504 600 171 1436 861 895 436 7893 1167 436 Core 42 | 6 . . . . . . . . . . . . . . . . . . . . . . . . . . . . . 36 . Treads 2 | . . . . . . . . . . . . . . . . . . . . . . . . . . . . . . 2 . Legs 3450 | 47 428 705 625 544 1101 . . . . . . . . . . . . . . . . . . . . . . . . . . Wheels . | . . . . . . . . . . . . . . . . . . . . . . . . . . . . . . . . Hover 6860 | . . . . . . . . . . . . . . . . . . . . . . . . . . . . . 5911 949 . Flight 20313 | . . . . . . 2319 329 1846 517 653 91 477 983 69 1637 1642 238 101 291 1421 198 504 600 171 1436 861 895 436 1982 180 436 Fastest Speed 6 | 50 120 105 175 190 190 25 25 21 25 25 25 6 14 24 11 13 24 28 20 17 23 15 15 28 25 19 19 19 6 32 40 Average Speed 46 | 112 180 175 214 190 190 26 25 24 25 25 25 23 26 24 23 24 27 28 27 24 23 24 26 28 26 26 25 26 30 52 41 Slowest Speed 245 | 120 190 245 245 190 190 28 25 25 25 25 25 25 27 24 24 26 28 28 32 110 23 25 32 28 28 27 27 27 120 160 60 Overloaded Moves 490 | . . . . . . . . . . . . 18 3 . 30 14 . . 8 7 . 8 24 . 26 6 216 10 120 . . Propulsion Burnouts . | . . . . . . . . . . . . . . . . . . . . . . . . . . . . . . . . Robots Hopped 100 | . . . . . . 7 . 7 1 . . 4 3 . 13 7 . . 4 7 2 8 8 . 2 1 3 2 17 4 . Potential Cave-ins 2 | . . . . . . . . . . . . . . . . . . . . . . . . . . . . . . 2 . Cave-ins Triggered . | . . . . . . . . . . . . . . . . . . . . . . . . . . . . . . . . Teleports 1 | . . . . . . . . . . . . . . . . . . . . . . . . . . . . . 1 . . Exploration Rate (%) 61 | 5 76 74 91 97 84 46 95 57 76 83 74 67 26 75 43 92 78 80 28 44 91 21 54 94 32 77 28 45 83 37 20 Regions Visited 31 Branch Regions 17 Pre-discovered Areas 12 | . . 4 . 4 . 1 . . 1 1 1 . . . . . . . . . . . . . . . . . . . . Known Exits Taken 20 | . . 1 . . . . . 1 1 1 1 1 . . 1 1 1 1 1 . . 1 1 1 1 1 1 1 1 1 . Unknown Exits Taken 5 | 1 1 . 1 1 1 . . . . . . . . . . . . . . . . . . . . . . . . . . Scrap Searched 7 | . . . . . 5 . . . 2 . . . . . . . . . . . . . . . . . . . . . . Spaces Dug 434 | . 9 3 3 . . 31 . 38 11 9 . 21 13 . 41 . . 1 7 39 . 19 15 . 19 8 6 1 97 42 1 Terrain Destroyed 1557 | . 9 41 3 . . 35 4 40 11 9 . 21 13 . 87 249 2 1 7 57 . 19 19 . 19 8 6 1 631 264 1 Melee 248 | . . . 3 . . 27 . 31 7 9 . 20 12 . 34 . . 1 6 34 . 11 14 . 19 8 6 1 3 1 1 Projectile 331 | . 9 4 . . . 4 4 9 4 . . 1 1 . 14 7 2 . 1 5 . 8 5 . . . . . 121 132 . AOE 978 | . . 37 . . . 4 . . . . . . . . 39 242 . . . 18 . . . . . . . . 507 131 . Terrain Rammed . | . . . . . . . . . . . . . . . . . . . . . . . . . . . . . . . . Walls Destroyed . | . . . . . . . . . . . . . . . . . . . . . . . . . . . . . . . . Machines Disabled . | . . . . . . . . . . . . . . . . . . . . . . . . . . . . . . . . Actions | -11 -10 -9 -9 -9 -9 -6 -6 -6 -6 -6 -6 -5 -5 -5 -5 -5 -5 -5 -5 -4 -4 -4 -4 -4 -3 -3 -2 -2 -2 -1 -1 --------- Run | Yrd Mat Mat Sto Rec Scr Fac Was Fac Low Low Dat Pro Fac Was Fac Ext Cet Arc Hub Fac Was Fac Arm Lab Res Qua Res Tes Frg Acc Com Total 38519 | 79 600 930 817 584 1100 2783 439 2212 531 680 92 531 1283 68 1867 2360 471 1357 314 1796 235 542 749 366 1755 927 962 559 9500 1587 443 Wait 5368 | . 63 43 63 32 . 324 82 283 2 12 . 32 226 . 135 538 216 1245 11 294 38 18 124 168 265 29 45 100 785 195 . Move 30458 | 52 427 704 624 543 1100 2305 328 1833 514 652 90 469 977 68 1611 1627 237 100 283 1408 194 490 585 170 1431 858 889 431 7863 1159 436 Hop 80 | . . . . . . 7 . 5 1 . . 3 3 . 12 7 . . 3 6 1 5 6 . 2 1 2 2 11 3 . Pick Up 181 | 3 12 29 7 1 . 6 . 2 . . . . 5 . 10 12 . 1 . 8 . 2 1 5 3 6 5 2 51 10 . Fast Attach 165 | 7 1 5 5 1 . 8 . 6 . . 1 . 12 . 7 5 2 1 1 17 1 1 1 7 7 3 3 5 51 5 2 Attach 98 | . 1 6 1 . . 14 . 2 . . . . 1 . 4 11 . . 3 7 . . 1 2 2 4 1 1 20 17 . Detach 24 | . . 2 . . . 1 . . . . . . 1 . 1 . 1 . 2 1 . . . 2 . . 1 1 11 . . Swap 151 | . 13 25 17 1 . 6 1 2 . . . . 2 . 7 8 2 . . 2 . 2 1 . 3 3 . 2 45 9 . Drop 226 | . 3 35 15 1 . 22 1 7 . . 1 . 14 . 10 9 2 3 . 8 1 5 . 6 5 8 3 7 52 7 1 Fire 1086 | 17 80 81 75 5 . 10 23 17 7 . . 3 2 . 22 76 8 2 1 8 . 6 5 . . 1 . . 457 180 . Melee 478 | . . . 10 . . 65 4 55 7 16 . 24 39 . 48 12 3 5 7 37 . 13 15 6 37 14 13 8 34 2 4 Ram . | . . . . . . . . . . . . . . . . . . . . . . . . . . . . . . . . Kick . | . . . . . . . . . . . . . . . . . . . . . . . . . . . . . . . . Crush . | . . . . . . . . . . . . . . . . . . . . . . . . . . . . . . . . Escape Stasis 157 | . . . . . . 15 . . . . . . . . . 30 . . . . . . . . . . . . 112 . . Rewire 19 | . . . . . . . . . . . . . . . . 9 . . . . . . 10 . . . . . . . . Trap . | . . . . . . . . . . . . . . . . . . . . . . . . . . . . . . . . Miscellaneous 28 | . . . . . . . . . . . . . 1 . . 16 . . 3 . . . . . . . . . 8 . . Route ------- -11/Scrapyard -10/Materials (discovered 2 exits: *Mat x2) -9/Materials (discovered 5 exits: [*Mat x3] / [*Min] / *Sto) -9/Storage (discovered 2 exits: [*Mat] / *Rec) -9/Recycling (discovered 2 exits: [*Fac] / *Scr) -9/Scraptown (discovered 2 exits: *Fac x2) -6/Factory (discovered 2 exits: Low x2) -6/Waste -6/Factory (discovered 5 exits: *Fac x3 / *Low x2) -6/Lower Caves -6/Lower Caves -6/Data Miner -5/Proximity Caves -5/Factory (discovered 5 exits: *Fac / Upp x2 / Ext x2) -5/Waste -5/Factory (discovered 5 exits: Fac / *Upp x2 / *Ext x2) -5/Extension (discovered 2 exits: *Fac / *Cet) -5/Cetus (discovered 2 exits: *Fac / *Arc) -5/Archives (discovered 3 exits: *Fac / *Hub x2) -5/Hub_04(d) (discovered 2 exits: *Fac x2) -4/Factory (discovered 5 exits: *Res x2 / *Upp x2 / Arm) -4/Waste -4/Factory (discovered 3 exits: Upp x2 / *Arm) -4/Armory (discovered 2 exits: Res / *Lab) -4/Lab -3/Research (discovered 2 exits: *Qua x2) -3/Quarantine -2/Research (discovered 3 exits: *Acc / *Tes x2) -2/Testing (discovered 2 exits: [*Sec] / *Frg) -2/Protoforge -1/Access -1/Command History --------- Turn | Location | Event 7 | -11/Scrapyard | Discovered new exit (range 15) 121 | -11/Scrapyard | Entered Materials 301 | -10/Materials | Build established: Mutant 343 | -10/Materials | Repaired Aluminum Leg 644 | -10/Materials | Discovered new exit (range 16) 910 | -10/Materials | Build established: Scavenger-Mutant 1205 | -10/Materials | Discovered new exit (range 7) 1218 | -10/Materials | Entered another Materials area 1218 | -9/Materials | Evolved 2 slots: Propulsion x1, Weapon x1 1388 | -9/Materials | Discovered new exit (range 5) 1812 | -9/Materials | Learned location of Mines (-9) 1859 | -9/Materials | Discovered new exit (range 3) 1882 | -9/Materials | Identified exit to Storage 1943 | -9/Materials | Learned Storage stockpile data 1996 | -9/Materials | Learned 2 Storage zone layouts 2040 | -9/Materials | Learned Storage trap positions 2072 | -9/Materials | Learned location of Zion (-7) 2169 | -9/Materials | Learned location of Mines (-8) 2256 | -9/Materials | Discovered new exit (range 3) 2409 | -9/Materials | Build established: Tank 2463 | -9/Materials | Destroyed 7 combat bots 2500 | -9/Materials | Discovered new exit (range 7) 2699 | -9/Materials | Core integrity fell below 50% 2839 | -9/Materials | Entered Storage 2841 | -9/Storage | Loaded intel: 10 trap records 3038 | -9/Storage | Build established: Scavenger-Tank 3291 | -9/Storage | Garrison activated, responded to threat 3578 | -9/Storage | Repaired Aluminum Leg+ 3662 | -9/Storage | Met 01-MTF 4116 | -9/Storage | Build established: Scavenger-Mutant 4243 | -9/Storage | Discovered new exit (range 10) 4519 | -9/Storage | Build established: Mutant 4545 | -9/Storage | Discovered new exit (range 5) 4558 | -9/Storage | Entered Recycling 4558 | -9/Recycling | Accompanied by 2 allies (01-MTF) 4864 | -9/Recycling | Build established: Tank 5391 | -9/Recycling | Discovered new exit (range 15) 5568 | -9/Recycling | Scanned before Scraplab entrance 5597 | -9/Recycling | Build established: Scavenger-Tank 5626 | -9/Recycling | Entered Scraplab 5641 | -9/Recycling | Discovered new exit (range 2) 5643 | -9/Recycling | Entered Scraptown 5826 | -9/Scraptown | Visited UFD Registry 5826 | -9/Scraptown | Registered with UFD as "Hammergrid" 5858 | -9/Scraptown | Visited Science Testing Area 5883 | -9/Scraptown | Visited TADAMA 5904 | -9/Scraptown | Visited Fellowship of the Rings 5930 | -9/Scraptown | Visited SPCMW 6322 | -9/Scraptown | Discovered new exit (range 11) 6535 | -9/Scraptown | Visited Junk Cannon Lab 6565 | -9/Scraptown | Visited Scrap Suit Storage 6592 | -9/Scraptown | Visited Chapter 10 6785 | -9/Scraptown | Visited Science Guys 6844 | -9/Scraptown | Visited Research Penetration Think Tank 6884 | -9/Scraptown | Visited Analyses Database 6918 | -9/Scraptown | Visited DA-N13 Charitable Foundation 6926 | -9/Scraptown | Found DCF Scrap (28 items) 7034 | -9/Scraptown | Visited LU-1G1's Boring Crew 7068 | -9/Scraptown | Visited Cartography Club 7507 | -9/Scraptown | Discovered new exit (range 5) 7608 | -9/Scraptown | Met Optimus 7608 | -9/Scraptown | Accepted into 0bPrime 7733 | -9/Scraptown | Entered Factory 7733 | -6/Factory | Evolved 6 slots: Propulsion x3, Utility x3 7918 | -6/Factory | Identified exit to Lower Caves 8042 | -6/Factory | Loaded intel: 8 recycling unit locations 8092 | -6/Factory | Build established: Ninja 8100 | -6/Factory | Learned location of Protoforge (-2) 8317 | -6/Factory | Spotted B-75 Beast 8511 | -6/Factory | Repaired Imp. Flight Unit 8931 | -6/Factory | Manually triggered Chute Trap 8931 | -6/Factory | Sucked down chute 8931 | -6/Factory | Entered Waste 8932 | -6/Waste | Met a frightened Derelict 8935 | -6/Waste | Spotted C-40 Crusher 8937 | -6/Waste | Spotted C-40 Crusher 8937 | -6/Waste | Spotted C-40 Crusher 8938 | -6/Waste | Spotted C-40 Crusher 8942 | -6/Waste | Spotted C-40 Crusher 8949 | -6/Waste | Warlord forces began an assault 8956 | -6/Waste | Allies destroyed C-40 Crusher 8987 | -6/Waste | Lost 7 allies 8996 | -6/Waste | Destroyed C-40 Crusher 9018 | -6/Waste | Allies destroyed C-40 Crusher 9034 | -6/Waste | Allies destroyed C-40 Crusher 9037 | -6/Waste | Spotted C-40 Crusher 9049 | -6/Waste | Allies destroyed C-40 Crusher 9110 | -6/Waste | Discovered new exit (range 11) 9155 | -6/Waste | Identified exit to Factory 9155 | -6/Waste | Entered Factory 9155 | -6/Factory | Accompanied by 10 allies 9175 | -6/Factory | Loaded intel: 8 recycling unit locations 9318 | -6/Factory | Lost 7 allies 9325 | -6/Factory | Discovered new exit (range 7) 9334 | -6/Factory | Identified exit to Factory 9480 | -6/Factory | Discovered exit to Factory (range 9) 9518 | -6/Factory | Discovered exit to Lower Caves (range 17) 9630 | -6/Factory | Central database locked down 9745 | -6/Factory | Spotted B-75 Beast 9833 | -6/Factory | Discovered exit to Factory (range 8) 9927 | -6/Factory | Repaired Imp. Flight Unit 9983 | -6/Factory | Repaired Imp. Flight Unit 10114 | -6/Factory | Entered Lower Caves 10199 | -6/Lower Caves | Learned 12 Factory zone layouts 10243 | -6/Lower Caves | Discovered new exit (range 10) 10244 | -6/Lower Caves | Encountered a Warlord checkpoint 10247 | -6/Lower Caves | Identified exit to Lower Caves 10277 | -6/Lower Caves | Entered another Lower Caves area 10312 | -6/Lower Caves | Spotted B-75 Beast 10331 | -6/Lower Caves | Encountered a Warlord checkpoint 10335 | -6/Lower Caves | Learned location of Extension (-5) 10452 | -6/Lower Caves | Discovered new exit (range 5) 10492 | -6/Lower Caves | Identified exit to Data Miner 10493 | -6/Lower Caves | Entered Data Miner 10494 | -6/Data Miner | Discovered new exit (range 6) 10497 | -6/Data Miner | Met Data Miner 10504 | -6/Data Miner | Learned location of Section 7 (-2) 10504 | -6/Data Miner | Acquired the access code to Warlord's prototype stash 10507 | -6/Data Miner | Received God Mode back door access code from Data Miner 10517 | -6/Data Miner | Identified exit to Proximity Caves 10518 | -6/Data Miner | Entered Proximity Caves 10565 | -5/Proximity Caves | Learned 4 Factory zone layouts 10639 | -5/Proximity Caves | Attracted the attention of an 0b10 outpost 10721 | -5/Proximity Caves | Discovered exit to Factory (range 13) 10730 | -5/Proximity Caves | Entered Factory 10730 | -5/Factory | Evolved 2 slots: Utility x2 10731 | -5/Factory | Identified exit to Extension 10734 | -5/Factory | Discovered new exit (range 22) 10760 | -5/Factory | Identified exit to Upper Caves 10775 | -5/Factory | Identified exit to Factory 10782 | -5/Factory | Loaded intel: 8 recycling unit locations 11024 | -5/Factory | Repaired Nuclear Pulse Array+ 11351 | -5/Factory | Manually triggered Chute Trap 11351 | -5/Factory | Sucked down chute 11351 | -5/Factory | Entered Waste 11352 | -5/Waste | Met a frightened Derelict 11352 | -5/Waste | Spotted C-40 Crusher 11354 | -5/Waste | Spotted C-40 Crusher 11354 | -5/Waste | Spotted C-40 Crusher 11356 | -5/Waste | Spotted C-40 Crusher 11361 | -5/Waste | Spotted C-40 Crusher 11364 | -5/Waste | Spotted C-40 Crusher 11366 | -5/Waste | EMP discharged 11366 | -5/Waste | Discovered new exit (range 10) 11368 | -5/Waste | Identified exit to Factory 11368 | -5/Waste | Entered Factory 11390 | -5/Factory | Loaded intel: 8 recycling unit locations 11475 | -5/Factory | Found Prototype Launcher 11520 | -5/Factory | Identified Tesla Bomb Launcher 11561 | -5/Factory | Incoming investigation squad redirected 11576 | -5/Factory | Incoming investigation squad redirected 11592 | -5/Factory | Incoming investigation squad redirected 11668 | -5/Factory | First assault squad dispatched 11688 | -5/Factory | Discovered exit to Factory (range 8) 11968 | -5/Factory | Search patrols dispatched 12002 | -5/Factory | Incoming investigation squad redirected 12097 | -5/Factory | Entered Extension 12187 | -5/Extension | Rescued a captive Derelict 12204 | -5/Extension | Rescued a captive Derelict 12205 | -5/Extension | Rescued a captive Derelict 12377 | -5/Extension | Rescued a captive Derelict 12379 | -5/Extension | Rescued a captive Derelict 12387 | -5/Extension | Rescued a captive Derelict 12394 | -5/Extension | Rescued a captive Derelict 12424 | -5/Extension | Build established: Hacker-Ninja 12568 | -5/Extension | Spotted B-75 Beast 12668 | -5/Extension | Spotted B-75 Beast 12697 | -5/Extension | First assault squad dispatched 12713 | -5/Extension | Lost 3 parts (1p1n1w) 12719 | -5/Extension | Incoming assault squad redirected 12740 | -5/Extension | Lost 8 allies 12741 | -5/Extension | Destroyed B-75 Beast 12761 | -5/Extension | Lost 4 parts (1n1u2w) 12966 | -5/Extension | Rescued A7 13077 | -5/Extension | Rescued a captive Derelict 13099 | -5/Extension | Rescued a captive Derelict 13109 | -5/Extension | Rescued a captive Derelict 13112 | -5/Extension | Rescued a captive Derelict 13241 | -5/Extension | Discovered exit to Factory (range 10) 13244 | -5/Extension | Discovered new exit (range 6) 13246 | -5/Extension | Identified exit to Cetus 13286 | -5/Extension | Build established: Hacker-Scout 13311 | -5/Extension | Entered Cetus 13311 | -5/Cetus | Accompanied by 8 allies (A7) 13316 | -5/Cetus | Acquired a Cetus Manufacturing Module code from A7 13318 | -5/Cetus | Spotted Cetus Guard 13318 | -5/Cetus | Spotted Cetus Guard 13321 | -5/Cetus | Spotted Cetus Guard 13324 | -5/Cetus | Allies destroyed Cetus Guard 13325 | -5/Cetus | Spotted Cetus Guard 13336 | -5/Cetus | Allies destroyed Cetus Guard 13340 | -5/Cetus | Allies destroyed Cetus Guard 13344 | -5/Cetus | Allies destroyed Cetus Guard 13362 | -5/Cetus | Started Cetus Manufacturing Module 13373 | -5/Cetus | Escorted A7 to Cetus Mainframe 13387 | -5/Cetus | Manufactured an Enhanced Grunt 13412 | -5/Cetus | Manufactured an Enhanced Grunt 13437 | -5/Cetus | Manufactured an Enhanced Grunt 13462 | -5/Cetus | Manufactured an Enhanced Grunt 13487 | -5/Cetus | Manufactured an Enhanced Grunt 13497 | -5/Cetus | Discovered new exit (range 22) 13532 | -5/Cetus | Spotted Cetus Guard 13532 | -5/Cetus | Spotted Cetus Guard 13532 | -5/Cetus | Spotted Cetus Guard 13532 | -5/Cetus | Spotted Cetus Guard 13554 | -5/Cetus | Allies destroyed Cetus Guard 13564 | -5/Cetus | Discovered exit to Factory (range 22) 13568 | -5/Cetus | Met Revision 17 13607 | -5/Cetus | Murdered A7 13613 | -5/Cetus | Extracted ID and sensor layout for unrecognized location from A7's data core 13615 | -5/Cetus | Found Prototype Protection 13615 | -5/Cetus | Identified Med. Regenerative Plating 13617 | -5/Cetus | Identified exit to Archives 13624 | -5/Cetus | Entered Archives 13624 | -5/Archives | Accompanied by 10 allies 13682 | -5/Archives | Discovered new exit (range 22) 13687 | -5/Archives | Discovered exit to Factory (range 21) 13695 | -5/Archives | Discovered new exit (range 13) 13696 | -5/Archives | Lost 3 allies 13699 | -5/Archives | Identified exit to Hub_04(d) 13736 | -5/Archives | Build established: Commander-Scout 14918 | -5/Archives | Entered Hub_04(d) 14918 | -5/Hub_04(d) | Accompanied by 7 allies 14936 | -5/Hub_04(d) | Discovered exit to Factory (range 12) 14963 | -5/Hub_04(d) | Discovered exit to Factory (range 22) 14984 | -5/Hub_04(d) | Incoming investigation squad redirected 15004 | -5/Hub_04(d) | Incoming investigation squad redirected 15008 | -5/Hub_04(d) | Network Hub disabled 15011 | -5/Hub_04(d) | Spotted Lightning 15023 | -5/Hub_04(d) | Spotted Lightning 15024 | -5/Hub_04(d) | Spotted Lightning 15024 | -5/Hub_04(d) | Spotted Lightning 15041 | -5/Hub_04(d) | Entered Factory 15041 | -4/Factory | Evolved 2 slots: Power x1, Propulsion x1 15051 | -4/Factory | Lost 4 allies 15136 | -4/Factory | Fabricated Cld. Cesium-ion Thruster (x1) 15299 | -4/Factory | Discovered new exit (range 20) 15482 | -4/Factory | Build established: Hacker-Ninja 15630 | -4/Factory | Discovered new exit (range 15) 15696 | -4/Factory | Identified exit to Upper Caves 15696 | -4/Factory | Identified exit to Armory 15699 | -4/Factory | Loaded intel: 8 recycling unit locations 15754 | -4/Factory | Discovered new exit (range 13) 15762 | -4/Factory | Spotted B-86 Titan 15840 | -4/Factory | Sucked down chute 15840 | -4/Factory | Entered Waste 15842 | -4/Waste | Spotted C-40 Crusher 15848 | -4/Waste | Spotted C-40 Crusher 15854 | -4/Waste | Spotted C-40 Crusher 15854 | -4/Waste | Spotted C-40 Crusher 15855 | -4/Waste | EMP discharged 15855 | -4/Waste | Spotted C-40 Crusher 15909 | -4/Waste | Spotted C-40 Crusher 15923 | -4/Waste | Discovered new exit (range 13) 15926 | -4/Waste | Identified exit to Factory 15926 | -4/Waste | Entered Factory 15976 | -4/Factory | Loaded intel: 8 recycling unit locations 16120 | -4/Factory | Entered Armory 16380 | -4/Armory | Spotted B-86 Titan 16449 | -4/Armory | Discovered new exit (range 10) 16462 | -4/Armory | Discovered new exit (range 5) 16465 | -4/Armory | Identified exit to Lab 16466 | -4/Armory | Entered Lab 16471 | -4/Lab | Discovered new exit (range 9) 16473 | -4/Lab | Identified exit to Research 16475 | -4/Lab | Hidden lab's door opened automatically 16475 | -4/Lab | Sensor layout match revealed 16476 | -4/Lab | Gained access to the hidden lab's interior 16482 | -4/Lab | Lost 5 parts (2n2u1w) 16592 | -4/Lab | Found Alien Artifact 16599 | -4/Lab | Found Alien Artifact 16606 | -4/Lab | Found Alien Artifact 16606 | -4/Lab | Identified Core Expander 16606 | -4/Lab | Installed Core Expander, added new Power slot 16618 | -4/Lab | Found Prototype Energy Cannon 16618 | -4/Lab | Identified Warp Cannon 16620 | -4/Lab | Found Prototype Energy Gun 16620 | -4/Lab | Identified Tachyon Dispersion Ray 16623 | -4/Lab | Found Prototype Protection 16623 | -4/Lab | Identified Exp. Powered Armor 16625 | -4/Lab | Found Prototype Hackware 16625 | -4/Lab | Identified Quantum Router 16638 | -4/Lab | Found Prototype Special Weapon 16638 | -4/Lab | Identified Gui. Remote Datajack 16665 | -4/Lab | Identified Integrated Dissipator 16665 | -4/Lab | Installed Integrated Dissipator, increased core heat dissipation (+20) 16719 | -4/Lab | Entered Research 16719 | -3/Research | Evolved 2 slots: Utility x2 16785 | -3/Research | Repaired Broken Field Propulsion Array 16818 | -3/Research | Repaired Field Propulsion Array 16869 | -3/Research | Repaired Broken Cld. Cesium-ion Thruster 16919 | -3/Research | Revision forces began assault on 0b10 16954 | -3/Research | Fabricated Cld. Cesium-ion Thruster? 16959 | -3/Research | Met up with Revision 17++ 17211 | -3/Research | Identified exit to Quarantine 17419 | -3/Research | Research terminal network offline 17476 | -3/Research | Entered Quarantine 17633 | -3/Quarantine | Found Alien Artifact 17634 | -3/Quarantine | Identified Subatomic Replicator 17634 | -3/Quarantine | Used Subatomic Replicator to create Alien Artifact 17681 | -3/Quarantine | Discovered new exit (range 13) 17693 | -3/Quarantine | Found Alien Artifact 17708 | -3/Quarantine | Found Prototype Processor 17709 | -3/Quarantine | Identified Exp. Signal Interpreter 17732 | -3/Quarantine | Found Alien Artifact 17732 | -3/Quarantine | Identified Dimensional Node Initializer 17732 | -3/Quarantine | Initialized slip node 17737 | -3/Quarantine | Found Dimensional Node Initializer 17798 | -3/Quarantine | Identified exit to Research 17798 | -3/Quarantine | Entered Research 17798 | -2/Research | Evolved 2 slots: Propulsion x1, Utility x1 17906 | -2/Research | Discovered new exit (range 6) 17907 | -2/Research | Identified exit to Access 17939 | -2/Research | Spotted B-90 Cyclops 17958 | -2/Research | Found Fusion Bomb Launcher 18056 | -2/Research | Identified exit to Testing 18112 | -2/Research | Entered Testing 18171 | -2/Testing | Found Prototype Device 18171 | -2/Testing | Identified Exp. Hardlight Generator 18196 | -2/Testing | Found Prototype Device 18196 | -2/Testing | Identified AEGIS Remote Shield 18251 | -2/Testing | Unchained authorized (DW-4LL) 18309 | -2/Testing | Repaired Broken Cld. Cesium-ion Thruster 18347 | -2/Testing | Spotted Fortress 18365 | -2/Testing | Discovered new exit (range 6) 18365 | -2/Testing | Discovered new exit (range 6) 18366 | -2/Testing | Identified exit to Protoforge 18366 | -2/Testing | Entered Protoforge 18545 | -2/Protoforge | Spotted Hotshot 18545 | -2/Protoforge | Spotted Hotshot 18569 | -2/Protoforge | Spotted Hotshot 18606 | -2/Protoforge | Spotted Hotshot 18610 | -2/Protoforge | Spotted B-90 Cyclops 18620 | -2/Protoforge | Superfortress began startup sequence 18649 | -2/Protoforge | Destroyed Decapitator 18650 | -2/Protoforge | Spotted Decapitator 18656 | -2/Protoforge | Destroyed Decapitator 18740 | -2/Protoforge | Spotted EXE-6 18741 | -2/Protoforge | Spotted EXE-6 18749 | -2/Protoforge | Spotted Decapitator 18753 | -2/Protoforge | UFD initiated attack on Protoforge (Readiness: Maximal) 18753 | -2/Protoforge | Loaded intel: 3 recycling unit locations 18773 | -2/Protoforge | Found Prototype Processor 18773 | -2/Protoforge | Identified Exp. Core Analyzer 18783 | -2/Protoforge | Found Prototype Device 18783 | -2/Protoforge | Identified Exp. Kinecellerator 18788 | -2/Protoforge | Initialized slip node 18790 | -2/Protoforge | Optimus greeted in Protoforge 18799 | -2/Protoforge | Spotted Decapitator 18843 | -2/Protoforge | Identified Supercharged TR 18843 | -2/Protoforge | Warped through subspace to slip node 18844 | -2/Protoforge | Optimus attacked Superfortress 18851 | -2/Protoforge | Spotted Decapitator 18873 | -2/Protoforge | Forge Plexus network access discovered 18877 | -2/Protoforge | Found Cep. XC Strikerail 18889 | -2/Protoforge | Found Exp. Armor Integrity Analyzer 18893 | -2/Protoforge | Lost 13 allies 18947 | -2/Protoforge | Spotted Immortal 18947 | -2/Protoforge | Spotted Immortal 18951 | -2/Protoforge | Destroyed Immortal 18963 | -2/Protoforge | Destroyed Immortal 18965 | -2/Protoforge | Spotted Decapitator 18965 | -2/Protoforge | Spotted Decapitator 18965 | -2/Protoforge | Spotted Decapitator 18965 | -2/Protoforge | Spotted Decapitator 18979 | -2/Protoforge | Destroyed Decapitator 18980 | -2/Protoforge | Spotted Hotshot 18981 | -2/Protoforge | Destroyed Decapitator 18981 | -2/Protoforge | Destroyed Decapitator 18987 | -2/Protoforge | Spotted Hotshot 18998 | -2/Protoforge | Destroyed Decapitator 19025 | -2/Protoforge | Destroyed Hotshot 19043 | -2/Protoforge | Destroyed Hotshot 19064 | -2/Protoforge | Destroyed 12 combat bots 19073 | -2/Protoforge | Build established: Scavenger-Scout 19091 | -2/Protoforge | Found Exp. Targeting Computer 19093 | -2/Protoforge | Found Cep. Rapid Grenade Launcher 19137 | -2/Protoforge | Spotted Decapitator 19137 | -2/Protoforge | Destroyed Decapitator 19137 | -2/Protoforge | Spotted Decapitator 19138 | -2/Protoforge | Spotted Decapitator 19148 | -2/Protoforge | Destroyed Decapitator 19150 | -2/Protoforge | Destroyed Decapitator 19161 | -2/Protoforge | Spotted V620-y 19161 | -2/Protoforge | Spotted V236-b 19230 | -2/Protoforge | Spotted Decapitator 19234 | -2/Protoforge | Destroyed Decapitator 19303 | -2/Protoforge | Spotted Immortal 19303 | -2/Protoforge | Spotted Immortal 19363 | -2/Protoforge | Destroyed Immortal 19387 | -2/Protoforge | Destroyed Immortal 19417 | -2/Protoforge | Spotted AP7-3 19463 | -2/Protoforge | Found Cep. Gyrokinetic System 19471 | -2/Protoforge | Found Faulty Cep. Combat Aerolev Unit 19493 | -2/Protoforge | Found Cep. Gyrokinetic System 19500 | -2/Protoforge | Found Cep. Gyrokinetic System 19536 | -2/Protoforge | Spotted V338-j 19536 | -2/Protoforge | Spotted V589-y 19537 | -2/Protoforge | Found Cep. Antigrav Storage Unit 19539 | -2/Protoforge | Found Cep. NT7 Matterbank 19546 | -2/Protoforge | Found Cep. Chromion Battery 19547 | -2/Protoforge | Found Cep. Matter Streamer 19558 | -2/Protoforge | Found Crosscalibrator 19570 | -2/Protoforge | Found Cep. Antimissile System 19589 | -2/Protoforge | Found Faulty Cep. Rapid Grenade Launcher 19611 | -2/Protoforge | Found Mni. Quantum Capacitor 19612 | -2/Protoforge | Found Cep. Hypertargeting System 19615 | -2/Protoforge | Found Cep. Countertargeting System 19617 | -2/Protoforge | Found Cep. Weapon Articulator 19692 | -2/Protoforge | Spotted V279-y 19695 | -2/Protoforge | Spotted V855-m 19695 | -2/Protoforge | Spotted V354-t 19700 | -2/Protoforge | Found Cep. Zero-point Core 19746 | -2/Protoforge | Spotted V614-q 19746 | -2/Protoforge | Spotted V523-c 19746 | -2/Protoforge | Spotted V309-c 19749 | -2/Protoforge | Found Faulty Cep. RG22 Armor 19750 | -2/Protoforge | Found Faulty Cep. RG22 Armor 19751 | -2/Protoforge | Found Cep. RG22 Armor 19779 | -2/Protoforge | Found Faulty Cep. Plasma Driver 19781 | -2/Protoforge | Found Cep. Plasma Driver 19789 | -2/Protoforge | Found Cep. Plasma Driver 19802 | -2/Protoforge | Found Exp. Jetlance 19875 | -2/Protoforge | Found Cep. Hypertargeting System 19879 | -2/Protoforge | Found Cep. Hypertargeting System 19942 | -2/Protoforge | Found Exp. Remote Shield 20003 | -2/Protoforge | Found Cep. Antimissile System 20024 | -2/Protoforge | Build established: Scout 20059 | -2/Protoforge | Identified Terrabomb 20059 | -2/Protoforge | Used Terrabomb 20067 | -2/Protoforge | Spotted Executioner 20069 | -2/Protoforge | Spotted Executioner 20074 | -2/Protoforge | P-80 Master assimilated allied 0Q-VC0(E) 20098 | -2/Protoforge | Destroyed Executioner 20119 | -2/Protoforge | Destroyed 7 combat bots 20138 | -2/Protoforge | Lost 12 allies 20211 | -2/Protoforge | Spotted Executioner 20214 | -2/Protoforge | Spotted Executioner 20281 | -2/Protoforge | Destroyed Executioner 20285 | -2/Protoforge | Destroyed Executioner 20298 | -2/Protoforge | System corruption reached 10% 20308 | -2/Protoforge | Found Exp. System Purifier 20359 | -2/Protoforge | Found Cep. Disintegration Ray 20371 | -2/Protoforge | Found Faulty Cep. Disintegration Ray 20382 | -2/Protoforge | Spotted AP7-3 20413 | -2/Protoforge | Destroyed AP7-3 20417 | -2/Protoforge | Destroyed AP7-3 20430 | -2/Protoforge | Found Exp. Targeting Computer 20436 | -2/Protoforge | Found Cep. Core Analysis Suite 20440 | -2/Protoforge | Found Cep. Impact Drone Bay 20445 | -2/Protoforge | Found Cep. Impact Drone Bay 20468 | -2/Protoforge | Found Cep. Deflector Sword 20510 | -2/Protoforge | Found Exp. System Purifier 20614 | -2/Protoforge | Spotted Executioner 20743 | -2/Protoforge | Spotted Executioner 20760 | -2/Protoforge | Spotted Executioner 20760 | -2/Protoforge | Spotted Executioner 20799 | -2/Protoforge | Spotted Executioner 20834 | -2/Protoforge | UFD reported confirmed Drillbomb installation 20836 | -2/Protoforge | Spotted Executioner 20836 | -2/Protoforge | Spotted Striker 20848 | -2/Protoforge | Build established: Sprinter 20854 | -2/Protoforge | Lost 7 allies 20857 | -2/Protoforge | Destroyed Executioner 20864 | -2/Protoforge | P-80 Master assimilated allied 02FEZ-D 20868 | -2/Protoforge | Spotted Executioner 20875 | -2/Protoforge | Spotted Striker 20902 | -2/Protoforge | Spotted Hotshot 20902 | -2/Protoforge | Spotted Hotshot 20909 | -2/Protoforge | Destroyed Hotshot 20912 | -2/Protoforge | Destroyed Hotshot 20924 | -2/Protoforge | Spotted Executioner 20930 | -2/Protoforge | Spotted Striker 20933 | -2/Protoforge | Destroyed 11 combat bots 20935 | -2/Protoforge | UFD reported confirmed Drillbomb installation 20937 | -2/Protoforge | Destroyed Striker 20943 | -2/Protoforge | Destroyed Executioner 21019 | -2/Protoforge | Spotted Executioner 21022 | -2/Protoforge | Spotted Executioner 21033 | -2/Protoforge | Destroyed Executioner 21045 | -2/Protoforge | Spotted Hotshot 21050 | -2/Protoforge | Destroyed Hotshot 21060 | -2/Protoforge | Discovered exit to Access (range 20) 21061 | -2/Protoforge | Lost 6 allies 21076 | -2/Protoforge | UFD reported confirmed Drillbomb installation 21118 | -2/Protoforge | Spotted Striker 21132 | -2/Protoforge | Spotted Executioner 21136 | -2/Protoforge | Spotted Striker 21143 | -2/Protoforge | Destroyed Striker 21165 | -2/Protoforge | Spotted Striker 21165 | -2/Protoforge | Spotted Striker 21176 | -2/Protoforge | Destroyed Striker 21189 | -2/Protoforge | Spotted Executioner 21195 | -2/Protoforge | Destroyed Executioner 21220 | -2/Protoforge | UFD reported confirmed Drillbomb installation 21243 | -2/Protoforge | Spotted Striker 21246 | -2/Protoforge | Destroyed 02F39-K 21249 | -2/Protoforge | Spotted Striker 21251 | -2/Protoforge | Spotted Striker 21251 | -2/Protoforge | Destroyed Striker 21265 | -2/Protoforge | Spotted Executioner 21268 | -2/Protoforge | Spotted Executioner 21297 | -2/Protoforge | Destroyed Executioner 21320 | -2/Protoforge | Destroyed 14 combat bots 21342 | -2/Protoforge | Lost 20 allies 21342 | -2/Protoforge | Installed UFD Drillbomb at designated target 21342 | -2/Protoforge | UFD reported confirmed Drillbomb installation 21347 | -2/Protoforge | Spotted Striker 21347 | -2/Protoforge | Spotted Executioner 21372 | -2/Protoforge | Spotted Executioner 21417 | -2/Protoforge | Lost 5 allies 21432 | -2/Protoforge | Spotted Striker 21467 | -2/Protoforge | Spotted V698-t 21471 | -2/Protoforge | Destroyed V698-t 21475 | -2/Protoforge | Found Corrupted Cep. Arcsight Missile Launcher 21508 | -2/Protoforge | Spotted Executioner 21530 | -2/Protoforge | Spotted Executioner 21531 | -2/Protoforge | Destroyed Executioner 21532 | -2/Protoforge | Destroyed Executioner 21598 | -2/Protoforge | Spotted V886-t 21600 | -2/Protoforge | Found Cep. Core Shell 21602 | -2/Protoforge | Found Cep. Core Shell 21666 | -2/Protoforge | Spotted Striker 21667 | -2/Protoforge | Found Exp. System Purifier 21668 | -2/Protoforge | Spotted Striker 21728 | -2/Protoforge | Spotted Executioner 21777 | -2/Protoforge | Found Exp. System Purifier 21797 | -2/Protoforge | Spotted Striker 21798 | -2/Protoforge | Spotted Executioner 21813 | -2/Protoforge | Destroyed Executioner 21813 | -2/Protoforge | Destroyed 02F52-K 21844 | -2/Protoforge | Lost 8 allies 21863 | -2/Protoforge | Spotted Executioner 21865 | -2/Protoforge | Destroyed Executioner 21868 | -2/Protoforge | Spotted Striker 21871 | -2/Protoforge | P-80 Master assimilated allied 02FIX-D 21872 | -2/Protoforge | P-80 Master assimilated allied 02FIY-D 21873 | -2/Protoforge | Destroyed Striker 21894 | -2/Protoforge | Destroyed 9 combat bots 21952 | -2/Protoforge | UFD reported confirmed Drillbomb installation 21969 | -2/Protoforge | Spotted Executioner 21969 | -2/Protoforge | Spotted Striker 21980 | -2/Protoforge | Spotted Executioner 22041 | -2/Protoforge | Spotted Executioner 22046 | -2/Protoforge | Spotted Striker 22053 | -2/Protoforge | Spotted Striker 22063 | -2/Protoforge | Spotted Executioner 22063 | -2/Protoforge | Spotted Striker 22066 | -2/Protoforge | Destroyed Executioner 22066 | -2/Protoforge | Destroyed Striker 22071 | -2/Protoforge | Spotted Executioner 22072 | -2/Protoforge | Destroyed Executioner 22097 | -2/Protoforge | Build established: Scavenger-Sprinter 22105 | -2/Protoforge | Destroyed 15 combat bots 22146 | -2/Protoforge | Spotted Striker 22185 | -2/Protoforge | UFD reported confirmed Drillbomb installation 22185 | -2/Protoforge | Destroyed Executioner 22208 | -2/Protoforge | Spotted Striker 22277 | -2/Protoforge | UFD reported confirmed Drillbomb installation 22360 | -2/Protoforge | Spotted Executioner 22362 | -2/Protoforge | Destroyed Executioner 22372 | -2/Protoforge | Spotted Executioner 22375 | -2/Protoforge | Destroyed Executioner 22379 | -2/Protoforge | Spotted Striker 22379 | -2/Protoforge | Spotted Executioner 22385 | -2/Protoforge | Destroyed Executioner 22385 | -2/Protoforge | Destroyed Striker 22415 | -2/Protoforge | Spotted Executioner 22417 | -2/Protoforge | Destroyed Executioner 22421 | -2/Protoforge | Spotted Executioner 22427 | -2/Protoforge | Destroyed Executioner 22428 | -2/Protoforge | Spotted Striker 22432 | -2/Protoforge | Spotted Striker 22436 | -2/Protoforge | Destroyed Striker 22448 | -2/Protoforge | Destroyed Striker 22469 | -2/Protoforge | Destroyed 32 combat bots 22494 | -2/Protoforge | UFD reported confirmed Drillbomb installation 22503 | -2/Protoforge | Spotted Striker 22503 | -2/Protoforge | Spotted Executioner 22503 | -2/Protoforge | Spotted Executioner 22503 | -2/Protoforge | Spotted Striker 22508 | -2/Protoforge | Destroyed Striker 22513 | -2/Protoforge | Destroyed Striker 22518 | -2/Protoforge | Destroyed Executioner 22526 | -2/Protoforge | Found Exp. Core Analyzer 22537 | -2/Protoforge | Spotted Striker 22537 | -2/Protoforge | Spotted Striker 22539 | -2/Protoforge | Destroyed 11 combat bots 22543 | -2/Protoforge | Lost 3 allies 22546 | -2/Protoforge | Lost 3 parts (1n2u) 22655 | -2/Protoforge | UFD reported confirmed Drillbomb installation 22656 | -2/Protoforge | UFD began Drillbomb countdown 22677 | -2/Protoforge | Entered Access 22677 | -1/Access | Evolved 2 slots: Utility x2 22839 | -1/Access | Unchained authorized (DW-4LL) 22927 | -1/Access | First assault squad dispatched 22957 | -1/Access | Spotted Striker 22985 | -1/Access | Build established: Scavenger-Ninja 23017 | -1/Access | Spotted Executioner 23017 | -1/Access | Spotted Executioner 23021 | -1/Access | Destroyed Executioner 23023 | -1/Access | Destroyed Executioner 23047 | -1/Access | Destroyed 8 combat bots 23053 | -1/Access | DW-4LL burst out of a wall 23075 | -1/Access | Destroyed DW-4LL 23107 | -1/Access | Energy Cycler disabled 23153 | -1/Access | Incoming assault squad redirected 23161 | -1/Access | Destroyed 15 combat bots 23162 | -1/Access | Incoming assault squad redirected 23196 | -1/Access | Spotted Striker 23198 | -1/Access | Spotted Striker 23201 | -1/Access | Destroyed Striker 23205 | -1/Access | Destroyed Striker 23207 | -1/Access | Incoming assault squad redirected 23258 | -1/Access | Spotted Executioner 23338 | -1/Access | Spotted Striker 23339 | -1/Access | Spotted Striker 23343 | -1/Access | Destroyed Striker 23355 | -1/Access | Destroyed Striker 23454 | -1/Access | Spotted B-99 Colossus 23462 | -1/Access | Build established: Scavenger-Assassin 23570 | -1/Access | High security lockdown imminent 23650 | -1/Access | High security lockdown engaged 23652 | -1/Access | Destroyed 19 combat bots 23671 | -1/Access | Released all parts (15) 23674 | -1/Access | Core integrity fell below 50% 23686 | -1/Access | Spotted B-99 Colossus 23688 | -1/Access | Spotted Striker 23692 | -1/Access | Core integrity fell below 20% 23697 | -1/Access | Lost 17 parts (4p5n4u4w) 23755 | -1/Access | Discovered new exit (range 8) 23758 | -1/Access | Identified exit to Command 23799 | -1/Access | Entered Command 23845 | -1/Command | System corruption reached 10% 23866 | -1/Command | Build established: Mutant 23993 | -1/Command | Spotted Alpha 7 23993 | -1/Command | Spotted Striker 23993 | -1/Command | Spotted Executioner 23993 | -1/Command | Spotted Executioner 23993 | -1/Command | Spotted Alpha 7 23993 | -1/Command | Spotted Striker 23993 | -1/Command | Spotted Executioner 23993 | -1/Command | Spotted Executioner 23994 | -1/Command | Destroyed by G-73 Enforcer with Phase Gun Last Messages --------------- >>Traps(Locate) Found 6 traps in 6 arrays: 1x Alarm Trap 1x Stasis Trap 1x Stasis Trap 1x Stasis Trap 1x Stasis Trap 1x Stasis Trap Map updated. 23922_ System corrupted: Matter fused (-5). 23923_ Sneak attack on R-10 Processor. 23923_ R-10 Processor destroyed. 23925_ Acquired 158 matter. 23969_ System corrupted: Heat flow error (+180). 23972_ Acquired Biometal Medium Treads. 23976_ Connecting with Terminal... 23984_ Deflected attack with Cep. Deflector Sword. 23993_ P-80 Master resets O-32 Director, system corruption cleaned. 23994_ O-32 Director destroyed. [Achievement: Rambo] Map ----- +----------------------------------------------------+ | #?#"" """" # ## + + # #?????? | | #?#"" "" # ## ##### # #?????? | | #?# # !! ## #???? # #?????? | | #?# # ! ## #????? # #?????? | | #?# ###+####### #####?####+##+##????? | | ########+####### #######+## ???# ^ #????? | | #??# #????? | | #??# #????? | | #??# #????? | | #### #????? | | + #????? | | ############ p p # #????? | | #??????????# + "" #????? | | #??????????# # "" #????? | | #?######???###### #######+### T" #????? | | # #????????# # ## "" #????? | | # #????????# # ## "" #????? | | + #????????# + ## #????? | | # #????????# g# ## #????? | | # #????????###### # #########????? | | #? #?????????????# # ! #????????????? | | #?###########????????# # #????????????? | | #?# #????????# # #????????????? | | #?# #????????#! # #????????????? | | #?? ?????????#%= ##########????????????? | | #???? ???????????#%*@ #?????????????????????? | | #?????#+####?????????#////#?????????????????????? | | #?????# #????????#^^^^ ^#????????????????????? | | #?????# #????????#7 7#????????????????????? | | ####### #???????# ????????????????????? | | #???????## K##???????????????????? | | #????????K ????????????????????? | | #???????## ##???????????????????? | | * ####???????E E????????????????????? | | #???????# E#????????????????????? | | ############ #???????E ????????????????????? | | ?????????# #???????# #????????????????????? | | ???????# #??????? ????????????????????? | | ?????# #??????? ????????????????????? | | !! ???# #??????? ????????????????????? | | !! #??# #?????????"""""?????????????????????? | | ! #??# #???????????????????????????????????? | | #??# #???????????????????????????????????? | | ############+###?????????????????????????????????? | | ?# #?????????????????????????????????? | | ?# #?????????????????????????????????? | | ?# #?????????????????????????????????? | | ?# "" "" #?????????????????????????????????? | | ?# ""T"" #?????????????????????????????????? | | ?# """ #?????????????????????????????????? | +----------------------------------------------------+ Best States ------------- Heat Dissipation 108 Energy Generation 65 Energy Capacity 2170 Matter Stores 300 Matter Capacity 300 Sight Range 23 Robot Scan Range 16 Terrain Scan Density 10 ECM Strength 1 Jamming Range 16 Power Amplification 30 Armor Coverage 1400 Core Shielding 90 Projectile Deflection 15 Weapon Cycling 20 Phase Shifting 15 Evasion (%) 87 Targeting Accuracy 12 Melee Accuracy 6 Core Analysis 11 Armor Integrity Analysis 50 Recoil Reduction 4 Offensive Hacking 14 Defensive Hacking 39 Authchip Count 1 Item Schematics ----------------- Weapon Cycler | -9/Storage | Hacked Gauss Rifle | -9/Storage | Hacked Imp. Trap Extractor | -9/Storage | Hacked Field Propulsion Drive | -6/Factory | Hacked Combat Drone Bay | -6/Data Miner | Free Lgt. Regenerative Plating | -6/Data Miner | Free Enh. Flexi-carbon Leg | -6/Data Miner | Free Prc. Energy Filter | -6/Data Miner | Free Plasma Sword | -6/Data Miner | Free Adv. Reaction Control System | -6/Data Miner | Free Hvy. Gauss Cannon | -6/Data Miner | Free Hyp. Coil Gun | -6/Data Miner | Free Centrium Wheel | -6/Data Miner | Free Quantum Rifle | -6/Data Miner | Free Adv. VSS Leg | -6/Data Miner | Free Cld. Cesium-ion Thruster | -5/Factory | Hacked Imp. Q-thruster | -2/Protoforge | Archive Exp. Flexi-carbon Leg | -2/Protoforge | Archive Centrium Greatsword | -2/Protoforge | Archive Robot Schematics ------------------ B-36 Bruiser | -9/Storage | Hacked A-15 Conveyor | -6/Data Miner | Free B-48 Gladiator | -6/Data Miner | Free R-10 Processor | -6/Data Miner | Free M-36 Artificer | -6/Data Miner | Free L-61 Swordsman | -6/Data Miner | Free C-35 Carver | -6/Data Miner | Free G-67 Veteran | -6/Data Miner | Free T-07 Excavator | -2/Protoforge | Archive Fabricated ------------ Cld. Cesium-ion Thruster | x1 | -4/Factory | Authchip Cld. Cesium-ion Thruster | x1 | -3/Research Repaired ---------- Aluminum Leg | 44% | -10/Materials Aluminum Leg | 21% | -9/Storage Imp. Flight Unit | 62% | -6/Factory Imp. Flight Unit | 35% | -6/Factory Imp. Flight Unit | 37% | -6/Factory Nuclear Pulse Array | 50% | -5/Factory Field Propulsion Array | 12% | -3/Research | Broken Field Propulsion Array | 16% | -3/Research Cld. Cesium-ion Thruster | 35% | -3/Research | Broken Cld. Cesium-ion Thruster | 37% | -2/Testing | Broken Studied --------- Lgt. Assault Rifle | -9/Materials | Hacked Aluminum Leg | -9/Materials | Hacked Lgt. Fission Core | -6/Factory | Hacked Nuclear Pulse Array | -5/Factory | Hacked Enh. Gauss Cannon | -5/Factory | Hacked Smartbomb Launcher | -5/Factory | Hacked Field Propulsion Drive | -4/Factory | Hacked Impulse Thruster Array | -3/Quarantine | Hacked Field Propulsion Array | -2/Research | Hacked Lgt. Antimatter Reactor | -2/Research | Hacked Alien Tech Used ----------------- Core Expander Integrated Dissipator Subatomic Replicator Dimensional Node Initializer Supercharged TR Terrabomb Achievements -------------- Anti-science Crusade Better Safe Than Exploded Bigger And Badder Explosive Keycard Frienemies Hot Stuff Immobile And Lovin' It Physics Protects Please No, No That Rambo Well-fed Force Field Worth The Wait Challenges ------------ None Game ------ Seed NullGrenadeHarness Manual? 0 Play Time 07:51:19 Cumulative 460.5 hours Start 2025.11.25 @ 17:01:29 End 2025.11.27 @ 17:52:53 Sessions 11 Manual Loads 0 Difficulty Rogue Special Mode None Game No. 168 Rogue 147 Adventurer 21 Explorer 0 Win Type - Total 23 Types 13/1/5/1/0/0/0/2/0/1 Lore% 63 Gallery% 76 Achievement% 63 Wizard Run 0 Options --------- Layout 1 ASCII 0 Keyboard 0 Movement Mouse Keybinds 0 Fullscreen 2 Font 32/SmallcapsGlow Map View 77x35 Zoom Use 0% Tactical HUD 1 Map Filters NONE Filters NONE Steam 1 RUN: 2bddb8db-16b2-43cf-b8a2-1df2b1765c0d